Workbook

Sheet Умная Т (hidden)
C1: Калужская область по состоянию на 01.12.2022 г. | D1: =SUM(Таблица1[Оплачено случаев]) -> 9867 | F1: =SUM(Таблица1[План ДВН, чел.]) -> 55395 | I1: Выполнение плана, % | J1: =ROUND(D1/F1,3) -> 0.178 | P1: =(K24+P24+U24+Z24+AE24+AJ24+AO24+AT24+AY24+BD24+BI24+BN24)/(J24+O24+Y24+T24+AD24+AI24+AN24+AS24+AX24+BC24+BH24+BM24)*1000 -> 1166.704785
C2: Средний тариф ДВН | D2: =P1 -> 1166.704785 | K2: ФАКТ | L2: ПЛАН | O2: ФАКТ | Q2: ПЛАН | T2: ФАКТ | V2: ПЛАН | Y2: ФАКТ | AA2: ПЛАН | AD2: ФАКТ | AF2: ПЛАН | AI2: ФАКТ | AK2: ПЛАН | AN2: ФАКТ | AP2: ПЛАН | AS2: ФАКТ | AU2: ПЛАН | AX2: ФАКТ | AZ2: ПЛАН | BC2: ФАКТ | BE2: ПЛАН | BH2: ФАКТ | BJ2: ПЛАН | BM2: ФАКТ | BO2: ПЛАН
A3: Месяц | B3: Вид | C3: Наименование медицинской организации | D3: Оплачено случаев | E3: Оплачено сумма, тыс.руб. | F3: План ДВН, чел. | G3: Отклонение | H3: % выполнения | J3: 1мес | K3: январь | L3: январь | M3: 2 мес | O3: Февраль | Q3: Февраль | R3: 3 мес | T3: Март | V3: Март | W3: 4 мес | Y3: Апрель | AA3: Апрель | AB3: 5 мес | AD3: Май | AF3: Май | AG3: 6 мес | AI3: Июнь | AK3: Июнь | AL3: 7 мес | AN3: Июль | AP3: Июль | AQ3: 8 мес | AS3: Август | AU3: Август | AV3: 9 мес | AX3: Сентябрь | AZ3: Сентябрь | BA3: 10 мес | BC3: Октябрь | BE3: Октябрь | BF3: 11 мес | BH3: Ноябрь | BJ3: Ноябрь | BK3: 12 мес | BM3: Декабрь | BO3: Декабрь
A4: Январь | B4: ДВН | C4: ЦМБ № 1 | D4: =J4 -> 0 | E4: =K4 -> 0 | F4: =L4 -> 1256 | G4: =Таблица1[[#This Row],[Оплачено случаев]]-Таблица1[[#This Row],[План ДВН, чел.]] -> -1256 | H4: =ROUND(Таблица1[[#This Row],[Оплачено случаев]]/Таблица1[[#This Row],[План ДВН, чел.]]*100,1) -> 0 | L4: 1256 | M4: =J4+O4 -> 91 | N4: =K4+P4 -> 150.81449 | O4: 91 | P4: 150.81449 | Q4: 1256 | R4: =M4+T4 -> 257 | S4: =N4+U4 -> 445.93395 | T4: 166 | U4: 295.11946 | V4: 1256 | W4: =R4+Y4 -> 257 | X4: =S4+Z4 -> 445.93395 | AB4: =W4+AD4 -> 257 | AC4: =X4+AE4 -> 445.93395 | AG4: =AB4+AI4 -> 257 | AH4: =AC4+AJ4 -> 445.93395 | AL4: =AG4+AN4 -> 257 | AM4: =AH4+AO4 -> 445.93395 | AQ4: =AL4+AS4 -> 257 | AR4: =AM4+AT4 -> 445.93395 | AV4: =AQ4+AX4 -> 257 | AW4: =AR4+AY4 -> 445.93395 | BA4: =AV4+BC4 -> 257 | BB4: =AW4+BD4 -> 445.93395 | BF4: =BA4+BH4 -> 257 | BG4: =BB4+BI4 -> 445.93395 | BK4: =BM4+BF4 -> 257 | BL4: =BG4+BN4 -> 445.93395 | BP4: =BO4+BJ4+BE4+AZ4+AU4+AP4+AK4+AF4+AA4+V4+Q4+L4 -> 3768 | BQ4: 2438 | BR4: 3318.29447 | BS4: =BQ4-BF4 -> 2181 | BT4: =BR4-BG4 -> 2872.36052
A5: Январь | B5: ДВН | C5: ЦМБ № 2 | D5: =J5 -> 0 | E5: =K5 -> 0 | F5: =L5 -> 1331 | G5: =Таблица1[[#This Row],[Оплачено случаев]]-Таблица1[[#This Row],[План ДВН, чел.]] -> -1331 | H5: =ROUND(Таблица1[[#This Row],[Оплачено случаев]]/Таблица1[[#This Row],[План ДВН, чел.]]*100,1) -> 0 | L5: 1331 | M5: =J5+O5 -> 10 | N5: 4.02418 | O5: 10 | P5: 4.02418 | Q5: 1331 | R5: =M5+T5 -> 18 | S5: =N5+U5 -> 8.98719 | T5: 8 | U5: 4.96301 | V5: 1331 | W5: =R5+Y5 -> 18 | X5: =S5+Z5 -> 8.98719 | AB5: =W5+AD5 -> 18 | AC5: =X5+AE5 -> 8.98719 | AG5: =AB5+AI5 -> 18 | AH5: =AC5+AJ5 -> 8.98719 | AL5: =AG5+AN5 -> 18 | AM5: =AH5+AO5 -> 8.98719 | AQ5: =AL5+AS5 -> 18 | AR5: =AM5+AT5 -> 8.98719 | AV5: =AQ5+AX5 -> 18 | AW5: =AR5+AY5 -> 8.98719 | BA5: =AV5+BC5 -> 18 | BB5: =AW5+BD5 -> 8.98719 | BF5: =BA5+BH5 -> 18 | BG5: =BB5+BI5 -> 8.98719 | BK5: =BM5+BF5 -> 18 | BL5: =BG5+BN5 -> 8.98719 | BP5: =BO5+BJ5+BE5+AZ5+AU5+AP5+AK5+AF5+AA5+V5+Q5+L5 -> 3993 | BQ5: 846 | BR5: 608.10937 | BS5: =BQ5-BF5 -> 828 | BT5: =BR5-BG5 -> 599.12218
A6: Январь | B6: ДВН | C6: ЦМБ № 3 | D6: 0 | E6: 0 | F6: 791 | G6: =Таблица1[[#This Row],[Оплачено случаев]]-Таблица1[[#This Row],[План ДВН, чел.]] -> -791 | H6: =ROUND(Таблица1[[#This Row],[Оплачено случаев]]/Таблица1[[#This Row],[План ДВН, чел.]]*100,1) -> 0 | L6: 791 | M6: 3 | N6: 2.95653 | O6: 3 | P6: 2.95653 | Q6: 791 | R6: 19 | S6: 35.08962 | T6: 16 | U6: 32.13309 | V6: 791 | W6: 19 | X6: 35.08962 | AB6: 19 | AC6: 35.08962 | AG6: 19 | AH6: 35.08962 | AL6: 19 | AM6: 35.08962 | AQ6: 19 | AR6: 35.08962 | AV6: 19 | AW6: 35.08962 | BA6: 19 | BB6: 35.08962 | BF6: 19 | BG6: 35.08962 | BK6: 19 | BL6: 35.08962 | BP6: 2373 | BQ6: 313 | BR6: 451.45324 | BS6: 294 | BT6: 416.36362
A7: Январь | B7: ДВН | C7: ЦМБ № 4 | D7: 0 | E7: 0 | F7: 352 | G7: =Таблица1[[#This Row],[Оплачено случаев]]-Таблица1[[#This Row],[План ДВН, чел.]] -> -352 | H7: =ROUND(Таблица1[[#This Row],[Оплачено случаев]]/Таблица1[[#This Row],[План ДВН, чел.]]*100,1) -> 0 | L7: 352 | M7: 0 | N7: 0 | Q7: 352 | R7: 0 | S7: 0 | V7: 352 | W7: 0 | X7: 0 | AB7: 0 | AC7: 0 | AG7: 0 | AH7: 0 | AL7: 0 | AM7: 0 | AQ7: 0 | AR7: 0 | AV7: 0 | AW7: 0 | BA7: 0 | BB7: 0 | BF7: 0 | BG7: 0 | BK7: 0 | BL7: 0 | BP7: 1056 | BQ7: 60 | BR7: 32.0589 | BS7: 60 | BT7: 32.0589
A8: Январь | B8: ДВН | C8: ЦМБ № 5 | D8: 0 | E8: 0 | F8: 1064 | G8: =Таблица1[[#This Row],[Оплачено случаев]]-Таблица1[[#This Row],[План ДВН, чел.]] -> -1064 | H8: =ROUND(Таблица1[[#This Row],[Оплачено случаев]]/Таблица1[[#This Row],[План ДВН, чел.]]*100,1) -> 0 | L8: 1064 | M8: 69 | N8: 96.57534 | O8: 69 | P8: 96.57534 | Q8: 1064 | R8: 236 | S8: 274.1587 | T8: 167 | U8: 177.58336 | V8: 1064 | W8: 236 | X8: 274.1587 | AB8: 236 | AC8: 274.1587 | AG8: 236 | AH8: 274.1587 | AL8: 236 | AM8: 274.1587 | AQ8: 236 | AR8: 274.1587 | AV8: 236 | AW8: 274.1587 | BA8: 236 | BB8: 274.1587 | BF8: 236 | BG8: 274.1587 | BK8: 236 | BL8: 274.1587 | BP8: 3192 | BQ8: 2194 | BR8: 2443.25087 | BS8: 1958 | BT8: 2169.09217
A9: Январь | B9: ДВН | C9: ЦМБ № 6 | D9: 0 | E9: 0 | F9: 1267 | G9: =Таблица1[[#This Row],[Оплачено случаев]]-Таблица1[[#This Row],[План ДВН, чел.]] -> -1267 | H9: =ROUND(Таблица1[[#This Row],[Оплачено случаев]]/Таблица1[[#This Row],[План ДВН, чел.]]*100,1) -> 0 | L9: 1267 | M9: 241 | N9: 424.56498 | O9: 241 | P9: 424.56498 | Q9: 1267 | R9: 360 | S9: 665.88772 | T9: 119 | U9: 241.32274 | V9: 1267 | W9: 360 | X9: 665.88772 | AB9: 360 | AC9: 665.88772 | AG9: 360 | AH9: 665.88772 | AL9: 360 | AM9: 665.88772 | AQ9: 360 | AR9: 665.88772 | AV9: 360 | AW9: 665.88772 | BA9: 360 | BB9: 665.88772 | BF9: 360 | BG9: 665.88772 | BK9: 360 | BL9: 665.88772 | BP9: 3801 | BQ9: 3993 | BR9: 5025.71461 | BS9: 3633 | BT9: 4359.82689
A10: Январь | B10: ДВН | C10: КГБ № 5 | D10: 0 | E10: 0 | F10: 2823 | G10: =Таблица1[[#This Row],[Оплачено случаев]]-Таблица1[[#This Row],[План ДВН, чел.]] -> -2823 | H10: =ROUND(Таблица1[[#This Row],[Оплачено случаев]]/Таблица1[[#This Row],[План ДВН, чел.]]*100,1) -> 0 | L10: 2823 | M10: 1412 | N10: 1650.41753 | O10: 1412 | P10: 1650.41753 | Q10: 2823 | R10: 3002 | S10: 3179.97348 | T10: 1590 | U10: 1529.55595 | V10: 2823 | W10: 3002 | X10: 3179.97348 | AB10: 3002 | AC10: 3179.97348 | AG10: 3002 | AH10: 3179.97348 | AL10: 3002 | AM10: 3179.97348 | AQ10: 3002 | AR10: 3179.97348 | AV10: 3002 | AW10: 3179.97348 | BA10: 3002 | BB10: 3179.97348 | BF10: 3002 | BG10: 3179.97348 | BK10: 3002 | BL10: 3179.97348 | BP10: 8469 | BQ10: 18833 | BR10: 29076.4396 | BS10: 15831 | BT10: 25896.46612
A11: Январь | B11: ДВН | C11: КГКБ № 4 | D11: 0 | E11: 0 | F11: 2532 | G11: =Таблица1[[#This Row],[Оплачено случаев]]-Таблица1[[#This Row],[План ДВН, чел.]] -> -2532 | H11: =ROUND(Таблица1[[#This Row],[Оплачено случаев]]/Таблица1[[#This Row],[План ДВН, чел.]]*100,1) -> 0 | L11: 2532 | M11: 1175 | N11: 994.33059 | O11: 1175 | P11: 994.33059 | Q11: 2532 | R11: 3150 | S11: 2709.76456 | T11: 1975 | U11: 1715.43397 | V11: 2532 | W11: 3150 | X11: 2709.76456 | AB11: 3150 | AC11: 2709.76456 | AG11: 3150 | AH11: 2709.76456 | AL11: 3150 | AM11: 2709.76456 | AQ11: 3150 | AR11: 2709.76456 | AV11: 3150 | AW11: 2709.76456 | BA11: 3150 | BB11: 2709.76456 | BF11: 3150 | BG11: 2709.76456 | BK11: 3150 | BL11: 2709.76456 | BP11: 7596 | BQ11: 14102 | BR11: 13056.02736 | BS11: 10952 | BT11: 10346.2628
A12: Январь | B12: ДВН | C12: Городская поликлиника | D12: 0 | E12: 0 | F12: 1411 | G12: =Таблица1[[#This Row],[Оплачено случаев]]-Таблица1[[#This Row],[План ДВН, чел.]] -> -1411 | H12: =ROUND(Таблица1[[#This Row],[Оплачено случаев]]/Таблица1[[#This Row],[План ДВН, чел.]]*100,1) -> 0 | L12: 1411 | M12: 578 | N12: 735.41785 | O12: 578 | P12: 735.41785 | Q12: 1411 | R12: 1083 | S12: 1344.72964 | T12: 505 | U12: 609.31179 | V12: 1411 | W12: 1083 | X12: 1344.72964 | AB12: 1083 | AC12: 1344.72964 | AG12: 1083 | AH12: 1344.72964 | AL12: 1083 | AM12: 1344.72964 | AQ12: 1083 | AR12: 1344.72964 | AV12: 1083 | AW12: 1344.72964 | BA12: 1083 | BB12: 1344.72964 | BF12: 1083 | BG12: 1344.72964 | BK12: 1083 | BL12: 1344.72964 | BP12: 4233 | BQ12: 4744 | BR12: 5978.76703 | BS12: 3661 | BT12: 4634.03739
A13: Январь | B13: ДВН | C13: МСЧ № 1 г. Калуги | D13: 0 | E13: 0 | F13: 90 | G13: =Таблица1[[#This Row],[Оплачено случаев]]-Таблица1[[#This Row],[План ДВН, чел.]] -> -90 | H13: =ROUND(Таблица1[[#This Row],[Оплачено случаев]]/Таблица1[[#This Row],[План ДВН, чел.]]*100,1) -> 0 | L13: 90 | M13: 1 | N13: 1.68705 | O13: 1 | P13: 1.68705 | Q13: 90 | R13: 37 | S13: 59.67945 | T13: 36 | U13: 57.9924 | V13: 90 | W13: 37 | X13: 59.67945 | AB13: 37 | AC13: 59.67945 | AG13: 37 | AH13: 59.67945 | AL13: 37 | AM13: 59.67945 | AQ13: 37 | AR13: 59.67945 | AV13: 37 | AW13: 59.67945 | BA13: 37 | BB13: 59.67945 | BF13: 37 | BG13: 59.67945 | BK13: 37 | BL13: 59.67945 | BP13: 270 | BQ13: 155 | BR13: 237.82027 | BS13: 118 | BT13: 178.14082
A14: Январь | B14: ДВН | C14: МСЧ № 2 г. Калуги | D14: 0 | E14: 0 | F14: 44 | G14: =Таблица1[[#This Row],[Оплачено случаев]]-Таблица1[[#This Row],[План ДВН, чел.]] -> -44 | H14: =ROUND(Таблица1[[#This Row],[Оплачено случаев]]/Таблица1[[#This Row],[План ДВН, чел.]]*100,1) -> 0 | L14: 44 | M14: 0 | N14: 0 | P14: 0 | Q14: 44 | R14: 0 | S14: 0 | U14: 0 | V14: 44 | W14: 0 | X14: 0 | AB14: 0 | AC14: 0 | AG14: 0 | AH14: 0 | AL14: 0 | AM14: 0 | AQ14: 0 | AR14: 0 | AV14: 0 | AW14: 0 | BA14: 0 | BB14: 0 | BF14: 0 | BG14: 0 | BK14: 0 | BL14: 0 | BP14: 132 | BQ14: 86 | BR14: 89.10085 | BS14: 86 | BT14: 89.10085
A15: Январь | B15: ДВН | C15: МСЧ МВД | D15: 0 | E15: 0 | F15: 0 | G15: =Таблица1[[#This Row],[Оплачено случаев]]-Таблица1[[#This Row],[План ДВН, чел.]] -> 0 | H15: =ROUND(Таблица1[[#This Row],[Оплачено случаев]]/Таблица1[[#This Row],[План ДВН, чел.]]*100,1) ->  | L15: 0 | M15: 0 | N15: 0 | P15: 0 | Q15: 0 | R15: 0 | S15: 0 | U15: 0 | V15: 0 | W15: 0 | X15: 0 | AB15: 0 | AC15: 0 | AG15: 0 | AH15: 0 | AL15: 0 | AM15: 0 | AQ15: 0 | AR15: 0 | AV15: 0 | AW15: 0 | BA15: 0 | BB15: 0 | BF15: 0 | BG15: 0 | BK15: 0 | BL15: 0 | BP15: 0 | BS15: 0 | BT15: 0
A16: Январь | B16: ДВН | C16: ЧУЗ "Больница "РЖД - Медицина" | D16: 0 | E16: 0 | F16: 82 | G16: =Таблица1[[#This Row],[Оплачено случаев]]-Таблица1[[#This Row],[План ДВН, чел.]] -> -82 | H16: =ROUND(Таблица1[[#This Row],[Оплачено случаев]]/Таблица1[[#This Row],[План ДВН, чел.]]*100,1) -> 0 | L16: 82 | M16: 0 | N16: 0 | P16: 0 | Q16: 82 | R16: 13 | S16: 23.11401 | T16: 13 | U16: 23.11401 | V16: 82 | W16: 13 | X16: 23.11401 | AB16: 13 | AC16: 23.11401 | AG16: 13 | AH16: 23.11401 | AL16: 13 | AM16: 23.11401 | AQ16: 13 | AR16: 23.11401 | AV16: 13 | AW16: 23.11401 | BA16: 13 | BB16: 23.11401 | BF16: 13 | BG16: 23.11401 | BK16: 13 | BL16: 23.11401 | BP16: 246 | BQ16: 489 | BR16: 861.96283 | BS16: 476 | BT16: 838.84882
A17: Январь | B17: ДВН | C17: КБ № 8 ФМБА | D17: 0 | E17: 0 | F17: 491 | G17: =Таблица1[[#This Row],[Оплачено случаев]]-Таблица1[[#This Row],[План ДВН, чел.]] -> -491 | H17: =ROUND(Таблица1[[#This Row],[Оплачено случаев]]/Таблица1[[#This Row],[План ДВН, чел.]]*100,1) -> 0 | L17: 491 | M17: 65 | N17: 82.86455 | O17: 65 | P17: 82.86455 | Q17: 491 | R17: 269 | S17: 432.30773 | T17: 204 | U17: 349.44318 | V17: 491 | W17: 269 | X17: 432.30773 | AB17: 269 | AC17: 432.30773 | AG17: 269 | AH17: 432.30773 | AL17: 269 | AM17: 432.30773 | AQ17: 269 | AR17: 432.30773 | AV17: 269 | AW17: 432.30773 | BA17: 269 | BB17: 432.30773 | BF17: 269 | BG17: 432.30773 | BK17: 269 | BL17: 432.30773 | BP17: 1473 | BQ17: 4170 | BR17: 5009.78691 | BS17: 3901 | BT17: 4577.47918
A18: Январь | B18: ДВН | C18: ЦРБ Бабынинского района | D18: 0 | E18: 0 | F18: 663 | G18: =Таблица1[[#This Row],[Оплачено случаев]]-Таблица1[[#This Row],[План ДВН, чел.]] -> -663 | H18: =ROUND(Таблица1[[#This Row],[Оплачено случаев]]/Таблица1[[#This Row],[План ДВН, чел.]]*100,1) -> 0 | L18: 663 | M18: 54 | N18: 96.08501 | O18: 54 | P18: 96.08501 | Q18: 663 | R18: 223 | S18: 385.11035 | T18: 169 | U18: 289.02534 | V18: 663 | W18: 223 | X18: 385.11035 | AB18: 223 | AC18: 385.11035 | AG18: 223 | AH18: 385.11035 | AL18: 223 | AM18: 385.11035 | AQ18: 223 | AR18: 385.11035 | AV18: 223 | AW18: 385.11035 | BA18: 223 | BB18: 385.11035 | BF18: 223 | BG18: 385.11035 | BK18: 223 | BL18: 385.11035 | BP18: 1989 | BQ18: 2568 | BR18: 4348.71327 | BS18: 2345 | BT18: 3963.60292
A19: Январь | B19: ДВН | C19: ЦРБ Боровского района | D19: 0 | E19: 0 | F19: 1227 | G19: =Таблица1[[#This Row],[Оплачено случаев]]-Таблица1[[#This Row],[План ДВН, чел.]] -> -1227 | H19: =ROUND(Таблица1[[#This Row],[Оплачено случаев]]/Таблица1[[#This Row],[План ДВН, чел.]]*100,1) -> 0 | L19: 1227 | M19: 159 | N19: 369.30584 | O19: 159 | P19: 369.30584 | Q19: 1227 | R19: 348 | S19: 770.61295 | T19: 189 | U19: 401.30711 | V19: 1227 | W19: 348 | X19: 770.61295 | AB19: 348 | AC19: 770.61295 | AG19: 348 | AH19: 770.61295 | AL19: 348 | AM19: 770.61295 | AQ19: 348 | AR19: 770.61295 | AV19: 348 | AW19: 770.61295 | BA19: 348 | BB19: 770.61295 | BF19: 348 | BG19: 770.61295 | BK19: 348 | BL19: 770.61295 | BP19: 3681 | BQ19: 4143 | BR19: 7076.66444 | BS19: 3795 | BT19: 6306.05149
A20: Январь | B20: ДВН | C20: ЦРБ Жуковского района | D20: 0 | E20: 0 | F20: 978 | G20: =Таблица1[[#This Row],[Оплачено случаев]]-Таблица1[[#This Row],[План ДВН, чел.]] -> -978 | H20: =ROUND(Таблица1[[#This Row],[Оплачено случаев]]/Таблица1[[#This Row],[План ДВН, чел.]]*100,1) -> 0 | L20: 978 | M20: 0 | N20: 0 | P20: 0 | Q20: 978 | R20: 23 | S20: 8.52097 | T20: 23 | U20: 8.52097 | V20: 978 | W20: 23 | X20: 8.52097 | AB20: 23 | AC20: 8.52097 | AG20: 23 | AH20: 8.52097 | AL20: 23 | AM20: 8.52097 | AQ20: 23 | AR20: 8.52097 | AV20: 23 | AW20: 8.52097 | BA20: 23 | BB20: 8.52097 | BF20: 23 | BG20: 8.52097 | BK20: 23 | BL20: 8.52097 | BP20: 2934 | BQ20: 2778 | BR20: 2555.55179 | BS20: 2755 | BT20: 2547.03082
A21: Январь | B21: ДВН | C21: ГП "Город Кременки" | D21: 0 | E21: 0 | F21: 188 | G21: =Таблица1[[#This Row],[Оплачено случаев]]-Таблица1[[#This Row],[План ДВН, чел.]] -> -188 | H21: =ROUND(Таблица1[[#This Row],[Оплачено случаев]]/Таблица1[[#This Row],[План ДВН, чел.]]*100,1) -> 0 | L21: 188 | M21: 2 | N21: 3.26793 | O21: 2 | P21: 3.26793 | Q21: 188 | R21: 2 | S21: 3.26793 | U21: 0 | V21: 188 | W21: 2 | X21: 3.26793 | AB21: 2 | AC21: 3.26793 | AG21: 2 | AH21: 3.26793 | AL21: 2 | AM21: 3.26793 | AQ21: 2 | AR21: 3.26793 | AV21: 2 | AW21: 3.26793 | BA21: 2 | BB21: 3.26793 | BF21: 2 | BG21: 3.26793 | BK21: 2 | BL21: 3.26793 | BP21: 564 | BQ21: 1187 | BR21: 1692.55267 | BS21: 1185 | BT21: 1689.28474
A22: Январь | B22: ДВН | C22: ЦРБ Малоярославецкого района | D22: 0 | E22: 0 | F22: 1269 | G22: =Таблица1[[#This Row],[Оплачено случаев]]-Таблица1[[#This Row],[План ДВН, чел.]] -> -1269 | H22: =ROUND(Таблица1[[#This Row],[Оплачено случаев]]/Таблица1[[#This Row],[План ДВН, чел.]]*100,1) -> 0 | L22: 1269 | M22: 314 | N22: 456.33086 | O22: 314 | P22: 456.33086 | Q22: 1269 | R22: 811 | S22: 1149.61306 | T22: 497 | U22: 693.2822 | V22: 1269 | W22: 811 | X22: 1149.61306 | AB22: 811 | AC22: 1149.61306 | AG22: 811 | AH22: 1149.61306 | AL22: 811 | AM22: 1149.61306 | AQ22: 811 | AR22: 1149.61306 | AV22: 811 | AW22: 1149.61306 | BA22: 811 | BB22: 1149.61306 | BF22: 811 | BG22: 1149.61306 | BK22: 811 | BL22: 1149.61306 | BP22: 3807 | BQ22: 5532 | BR22: 8405.49233 | BS22: 4721 | BT22: 7255.87927
A23: Январь | B23: ДВН | C23: ЦРБ Тарусского района | D23: 0 | E23: 0 | F23: 606 | G23: =Таблица1[[#This Row],[Оплачено случаев]]-Таблица1[[#This Row],[План ДВН, чел.]] -> -606 | H23: =ROUND(Таблица1[[#This Row],[Оплачено случаев]]/Таблица1[[#This Row],[План ДВН, чел.]]*100,1) -> 0 | L23: 606 | M23: 8 | N23: 8.91509 | O23: 8 | P23: 8.91509 | Q23: 606 | R23: 16 | S23: 15.1248 | T23: 8 | U23: 6.20971 | V23: 606 | W23: 16 | X23: 15.1248 | AB23: 16 | AC23: 15.1248 | AG23: 16 | AH23: 15.1248 | AL23: 16 | AM23: 15.1248 | AQ23: 16 | AR23: 15.1248 | AV23: 16 | AW23: 15.1248 | BA23: 16 | BB23: 15.1248 | BF23: 16 | BG23: 15.1248 | BK23: 16 | BL23: 15.1248 | BP23: 1818 | BQ23: 1630 | BR23: 1433.26742 | BS23: 1614 | BT23: 1418.14262
A24: Февраль | B24: ДВН | C24: ЦМБ № 1 | D24: =O4 -> 91 | E24: =P4 -> 150.81449 | F24: =Q4 -> 1256 | G24: =Таблица1[[#This Row],[Оплачено случаев]]-Таблица1[[#This Row],[План ДВН, чел.]] -> -1165 | H24: =ROUND(Таблица1[[#This Row],[Оплачено случаев]]/Таблица1[[#This Row],[План ДВН, чел.]]*100,1) -> 7.2 | J24: =SUM(J4:J23) -> 0 | K24: 0 | L24: 18465 | M24: 4182 | N24: 5077.55782 | O24: 4182 | P24: 5077.55782 | Q24: 18465 | R24: 9867 | S24: 11511.87611 | T24: 5685 | U24: 6434.31829 | V24: 18465 | W24: 9867 | X24: 11511.87611 | Y24: 0 | Z24: 0 | AA24: 0 | AB24: 9867 | AC24: 11511.87611 | AD24: 0 | AE24: 0 | AF24: 0 | AG24: 9867 | AH24: 11511.87611 | AI24: 0 | AJ24: 0 | AK24: 0 | AL24: 9867 | AM24: 11511.87611 | AN24: 0 | AO24: 0 | AP24: =SUM(AP4:AP23) -> 0 | AQ24: 9867 | AR24: 11511.87611 | AS24: 0 | AT24: 0 | AU24: 0 | AV24: 9867 | AW24: 11511.87611 | AX24: 0 | AY24: 0 | AZ24: 0 | BA24: 9867 | BB24: 11511.87611 | BC24: 0 | BD24: 0 | BE24: 0 | BF24: 9867 | BG24: 11511.87611 | BH24: 0 | BI24: 0 | BJ24: 0 | BK24: 9867 | BL24: 11511.87611 | BM24: 0 | BN24: 0 | BO24: 0 | BP24: 55395
A25: Февраль | B25: ДВН | C25: ЦМБ № 2 | D25: 10 | E25: 4.02418 | F25: 1331 | G25: =Таблица1[[#This Row],[Оплачено случаев]]-Таблица1[[#This Row],[План ДВН, чел.]] -> -1321 | H25: =ROUND(Таблица1[[#This Row],[Оплачено случаев]]/Таблица1[[#This Row],[План ДВН, чел.]]*100,1) -> 0.8
A26: Февраль | B26: ДВН | C26: ЦМБ № 3 | D26: 3 | E26: 2.95653 | F26: 791 | G26: =Таблица1[[#This Row],[Оплачено случаев]]-Таблица1[[#This Row],[План ДВН, чел.]] -> -788 | H26: =ROUND(Таблица1[[#This Row],[Оплачено случаев]]/Таблица1[[#This Row],[План ДВН, чел.]]*100,1) -> 0.4 | K26: =K4/1000 -> 0 | P26: =P4/1000 -> 0.15081449 | U26: =U4/1000 -> 0.29511946
A27: Февраль | B27: ДВН | C27: ЦМБ № 4 | D27: 0 | E27: 0 | F27: 352 | G27: =Таблица1[[#This Row],[Оплачено случаев]]-Таблица1[[#This Row],[План ДВН, чел.]] -> -352 | H27: =ROUND(Таблица1[[#This Row],[Оплачено случаев]]/Таблица1[[#This Row],[План ДВН, чел.]]*100,1) -> 0 | K27: 0 | P27: =P5/1000 -> 0.00402418 | U27: =U5/1000 -> 0.00496301
A28: Февраль | B28: ДВН | C28: ЦМБ № 5 | D28: 69 | E28: 96.57534 | F28: 1064 | G28: =Таблица1[[#This Row],[Оплачено случаев]]-Таблица1[[#This Row],[План ДВН, чел.]] -> -995 | H28: =ROUND(Таблица1[[#This Row],[Оплачено случаев]]/Таблица1[[#This Row],[План ДВН, чел.]]*100,1) -> 6.5 | K28: 0 | P28: 0.00295653 | U28: 0.03213309
A29: Февраль | B29: ДВН | C29: ЦМБ № 6 | D29: 241 | E29: 424.56498 | F29: 1267 | G29: =Таблица1[[#This Row],[Оплачено случаев]]-Таблица1[[#This Row],[План ДВН, чел.]] -> -1026 | H29: =ROUND(Таблица1[[#This Row],[Оплачено случаев]]/Таблица1[[#This Row],[План ДВН, чел.]]*100,1) -> 19 | K29: 0 | P29: 0 | U29: 0
A30: Февраль | B30: ДВН | C30: КГБ № 5 | D30: 1412 | E30: 1650.41753 | F30: 2823 | G30: =Таблица1[[#This Row],[Оплачено случаев]]-Таблица1[[#This Row],[План ДВН, чел.]] -> -1411 | H30: =ROUND(Таблица1[[#This Row],[Оплачено случаев]]/Таблица1[[#This Row],[План ДВН, чел.]]*100,1) -> 50 | K30: 0 | P30: 0.09657534 | U30: 0.17758336
A31: Февраль | B31: ДВН | C31: КГКБ № 4 | D31: 1175 | E31: 994.33059 | F31: 2532 | G31: =Таблица1[[#This Row],[Оплачено случаев]]-Таблица1[[#This Row],[План ДВН, чел.]] -> -1357 | H31: =ROUND(Таблица1[[#This Row],[Оплачено случаев]]/Таблица1[[#This Row],[План ДВН, чел.]]*100,1) -> 46.4 | K31: 0 | P31: 0.42456498 | U31: 0.24132274
A32: Февраль | B32: ДВН | C32: Городская поликлиника | D32: 578 | E32: 735.41785 | F32: 1411 | G32: =Таблица1[[#This Row],[Оплачено случаев]]-Таблица1[[#This Row],[План ДВН, чел.]] -> -833 | H32: =ROUND(Таблица1[[#This Row],[Оплачено случаев]]/Таблица1[[#This Row],[План ДВН, чел.]]*100,1) -> 41 | K32: 0 | P32: 1.65041753 | U32: 1.52955595
A33: Февраль | B33: ДВН | C33: МСЧ № 1 г. Калуги | D33: 1 | E33: 1.68705 | F33: 90 | G33: =Таблица1[[#This Row],[Оплачено случаев]]-Таблица1[[#This Row],[План ДВН, чел.]] -> -89 | H33: =ROUND(Таблица1[[#This Row],[Оплачено случаев]]/Таблица1[[#This Row],[План ДВН, чел.]]*100,1) -> 1.1 | K33: 0 | P33: 0.99433059 | U33: 1.71543397
A34: Февраль | B34: ДВН | C34: МСЧ № 2 г. Калуги | D34: 0 | E34: 0 | F34: 44 | G34: =Таблица1[[#This Row],[Оплачено случаев]]-Таблица1[[#This Row],[План ДВН, чел.]] -> -44 | H34: =ROUND(Таблица1[[#This Row],[Оплачено случаев]]/Таблица1[[#This Row],[План ДВН, чел.]]*100,1) -> 0 | K34: 0 | P34: 0.73541785 | U34: 0.60931179
A35: Февраль | B35: ДВН | C35: МСЧ МВД | D35: 0 | E35: 0 | F35: 0 | G35: =Таблица1[[#This Row],[Оплачено случаев]]-Таблица1[[#This Row],[План ДВН, чел.]] -> 0 | H35: =ROUND(Таблица1[[#This Row],[Оплачено случаев]]/Таблица1[[#This Row],[План ДВН, чел.]]*100,1) ->  | K35: 0 | P35: 0.00168705 | U35: 0.0579924
A36: Февраль | B36: ДВН | C36: ЧУЗ "Больница "РЖД - Медицина" | D36: 0 | E36: 0 | F36: 82 | G36: =Таблица1[[#This Row],[Оплачено случаев]]-Таблица1[[#This Row],[План ДВН, чел.]] -> -82 | H36: =ROUND(Таблица1[[#This Row],[Оплачено случаев]]/Таблица1[[#This Row],[План ДВН, чел.]]*100,1) -> 0 | K36: 0 | P36: 0 | U36: 0
A37: Февраль | B37: ДВН | C37: КБ № 8 ФМБА | D37: 65 | E37: 82.86455 | F37: 491 | G37: =Таблица1[[#This Row],[Оплачено случаев]]-Таблица1[[#This Row],[План ДВН, чел.]] -> -426 | H37: =ROUND(Таблица1[[#This Row],[Оплачено случаев]]/Таблица1[[#This Row],[План ДВН, чел.]]*100,1) -> 13.2 | K37: 0 | P37: 0 | U37: 0
A38: Февраль | B38: ДВН | C38: ЦРБ Бабынинского района | D38: 54 | E38: 96.08501 | F38: 663 | G38: =Таблица1[[#This Row],[Оплачено случаев]]-Таблица1[[#This Row],[План ДВН, чел.]] -> -609 | H38: =ROUND(Таблица1[[#This Row],[Оплачено случаев]]/Таблица1[[#This Row],[План ДВН, чел.]]*100,1) -> 8.1 | K38: 0 | P38: 0 | U38: 0.02311401
A39: Февраль | B39: ДВН | C39: ЦРБ Боровского района | D39: 159 | E39: 369.30584 | F39: 1227 | G39: =Таблица1[[#This Row],[Оплачено случаев]]-Таблица1[[#This Row],[План ДВН, чел.]] -> -1068 | H39: =ROUND(Таблица1[[#This Row],[Оплачено случаев]]/Таблица1[[#This Row],[План ДВН, чел.]]*100,1) -> 13 | K39: 0 | P39: 0.08286455 | U39: 0.34944318
A40: Февраль | B40: ДВН | C40: ЦРБ Жуковского района | D40: 0 | E40: 0 | F40: 978 | G40: =Таблица1[[#This Row],[Оплачено случаев]]-Таблица1[[#This Row],[План ДВН, чел.]] -> -978 | H40: =ROUND(Таблица1[[#This Row],[Оплачено случаев]]/Таблица1[[#This Row],[План ДВН, чел.]]*100,1) -> 0 | K40: 0 | P40: 0.09608501 | U40: 0.28902534
A41: Февраль | B41: ДВН | C41: ГП "Город Кременки" | D41: 2 | E41: 3.26793 | F41: 188 | G41: =Таблица1[[#This Row],[Оплачено случаев]]-Таблица1[[#This Row],[План ДВН, чел.]] -> -186 | H41: =ROUND(Таблица1[[#This Row],[Оплачено случаев]]/Таблица1[[#This Row],[План ДВН, чел.]]*100,1) -> 1.1 | K41: 0 | P41: 0.36930584 | U41: 0.40130711
A42: Февраль | B42: ДВН | C42: ЦРБ Малоярославецкого района | D42: 314 | E42: 456.33086 | F42: 1269 | G42: =Таблица1[[#This Row],[Оплачено случаев]]-Таблица1[[#This Row],[План ДВН, чел.]] -> -955 | H42: =ROUND(Таблица1[[#This Row],[Оплачено случаев]]/Таблица1[[#This Row],[План ДВН, чел.]]*100,1) -> 24.7 | K42: 0 | P42: 0 | U42: 0.00852097
A43: Февраль | B43: ДВН | C43: ЦРБ Тарусского района | D43: 8 | E43: 8.91509 | F43: 606 | G43: =Таблица1[[#This Row],[Оплачено случаев]]-Таблица1[[#This Row],[План ДВН, чел.]] -> -598 | H43: =ROUND(Таблица1[[#This Row],[Оплачено случаев]]/Таблица1[[#This Row],[План ДВН, чел.]]*100,1) -> 1.3 | K43: 0 | P43: 0.00326793 | U43: 0
A44: Март | B44: ДВН | C44: ЦМБ № 1 | D44: =T4 -> 166 | E44: =U4 -> 295.11946 | F44: =V4 -> 1256 | G44: =Таблица1[[#This Row],[Оплачено случаев]]-Таблица1[[#This Row],[План ДВН, чел.]] -> -1090 | H44: =ROUND(Таблица1[[#This Row],[Оплачено случаев]]/Таблица1[[#This Row],[План ДВН, чел.]]*100,1) -> 13.2 | K44: =K23/1000 -> 0 | P44: 0.45633086 | U44: 0.6932822
A45: Март | B45: ДВН | C45: ЦМБ № 2 | D45: 8 | E45: 4.96301 | F45: 1331 | G45: =Таблица1[[#This Row],[Оплачено случаев]]-Таблица1[[#This Row],[План ДВН, чел.]] -> -1323 | H45: =ROUND(Таблица1[[#This Row],[Оплачено случаев]]/Таблица1[[#This Row],[План ДВН, чел.]]*100,1) -> 0.6 | K45: =#REF!/1000 ->  | P45: 0.00891509 | U45: 0.00620971
A46: Март | B46: ДВН | C46: ЦМБ № 3 | D46: 16 | E46: 32.13309 | F46: 791 | G46: =Таблица1[[#This Row],[Оплачено случаев]]-Таблица1[[#This Row],[План ДВН, чел.]] -> -775 | H46: =ROUND(Таблица1[[#This Row],[Оплачено случаев]]/Таблица1[[#This Row],[План ДВН, чел.]]*100,1) -> 2 | K46: =K24/1000 -> 0 | P46: 5.07755782
A47: Март | B47: ДВН | C47: ЦМБ № 4 | D47: 0 | E47: 0 | F47: 352 | G47: =Таблица1[[#This Row],[Оплачено случаев]]-Таблица1[[#This Row],[План ДВН, чел.]] -> -352 | H47: =ROUND(Таблица1[[#This Row],[Оплачено случаев]]/Таблица1[[#This Row],[План ДВН, чел.]]*100,1) -> 0 | K47: 0 | P47: 0
A48: Март | B48: ДВН | C48: ЦМБ № 5 | D48: 167 | E48: 177.58336 | F48: 1064 | G48: =Таблица1[[#This Row],[Оплачено случаев]]-Таблица1[[#This Row],[План ДВН, чел.]] -> -897 | H48: =ROUND(Таблица1[[#This Row],[Оплачено случаев]]/Таблица1[[#This Row],[План ДВН, чел.]]*100,1) -> 15.7 | K48: 0 | P48: 0.00015081449
A49: Март | B49: ДВН | C49: ЦМБ № 6 | D49: 119 | E49: 241.32274 | F49: 1267 | G49: =Таблица1[[#This Row],[Оплачено случаев]]-Таблица1[[#This Row],[План ДВН, чел.]] -> -1148 | H49: =ROUND(Таблица1[[#This Row],[Оплачено случаев]]/Таблица1[[#This Row],[План ДВН, чел.]]*100,1) -> 9.4 | K49: 0 | P49: 4.02418e-06
A50: Март | B50: ДВН | C50: КГБ № 5 | D50: 1590 | E50: 1529.55595 | F50: 2823 | G50: =Таблица1[[#This Row],[Оплачено случаев]]-Таблица1[[#This Row],[План ДВН, чел.]] -> -1233 | H50: =ROUND(Таблица1[[#This Row],[Оплачено случаев]]/Таблица1[[#This Row],[План ДВН, чел.]]*100,1) -> 56.3 | K50: 0
A51: Март | B51: ДВН | C51: КГКБ № 4 | D51: 1975 | E51: 1715.43397 | F51: 2532 | G51: =Таблица1[[#This Row],[Оплачено случаев]]-Таблица1[[#This Row],[План ДВН, чел.]] -> -557 | H51: =ROUND(Таблица1[[#This Row],[Оплачено случаев]]/Таблица1[[#This Row],[План ДВН, чел.]]*100,1) -> 78 | K51: 0
A52: Март | B52: ДВН | C52: Городская поликлиника | D52: 505 | E52: 609.31179 | F52: 1411 | G52: =Таблица1[[#This Row],[Оплачено случаев]]-Таблица1[[#This Row],[План ДВН, чел.]] -> -906 | H52: =ROUND(Таблица1[[#This Row],[Оплачено случаев]]/Таблица1[[#This Row],[План ДВН, чел.]]*100,1) -> 35.8 | K52: 0
A53: Март | B53: ДВН | C53: МСЧ № 1 г. Калуги | D53: 36 | E53: 57.9924 | F53: 90 | G53: =Таблица1[[#This Row],[Оплачено случаев]]-Таблица1[[#This Row],[План ДВН, чел.]] -> -54 | H53: =ROUND(Таблица1[[#This Row],[Оплачено случаев]]/Таблица1[[#This Row],[План ДВН, чел.]]*100,1) -> 40 | K53: 0
A54: Март | B54: ДВН | C54: МСЧ № 2 г. Калуги | D54: 0 | E54: 0 | F54: 44 | G54: =Таблица1[[#This Row],[Оплачено случаев]]-Таблица1[[#This Row],[План ДВН, чел.]] -> -44 | H54: =ROUND(Таблица1[[#This Row],[Оплачено случаев]]/Таблица1[[#This Row],[План ДВН, чел.]]*100,1) -> 0 | K54: 0
A55: Март | B55: ДВН | C55: МСЧ МВД | D55: 0 | E55: 0 | F55: 0 | G55: =Таблица1[[#This Row],[Оплачено случаев]]-Таблица1[[#This Row],[План ДВН, чел.]] -> 0 | H55: =ROUND(Таблица1[[#This Row],[Оплачено случаев]]/Таблица1[[#This Row],[План ДВН, чел.]]*100,1) ->  | K55: 0
A56: Март | B56: ДВН | C56: ЧУЗ "Больница "РЖД - Медицина" | D56: 13 | E56: 23.11401 | F56: 82 | G56: =Таблица1[[#This Row],[Оплачено случаев]]-Таблица1[[#This Row],[План ДВН, чел.]] -> -69 | H56: =ROUND(Таблица1[[#This Row],[Оплачено случаев]]/Таблица1[[#This Row],[План ДВН, чел.]]*100,1) -> 15.9 | K56: 0
A57: Март | B57: ДВН | C57: КБ № 8 ФМБА | D57: 204 | E57: 349.44318 | F57: 491 | G57: =Таблица1[[#This Row],[Оплачено случаев]]-Таблица1[[#This Row],[План ДВН, чел.]] -> -287 | H57: =ROUND(Таблица1[[#This Row],[Оплачено случаев]]/Таблица1[[#This Row],[План ДВН, чел.]]*100,1) -> 41.5 | K57: 0
A58: Март | B58: ДВН | C58: ЦРБ Бабынинского района | D58: 169 | E58: 289.02534 | F58: 663 | G58: =Таблица1[[#This Row],[Оплачено случаев]]-Таблица1[[#This Row],[План ДВН, чел.]] -> -494 | H58: =ROUND(Таблица1[[#This Row],[Оплачено случаев]]/Таблица1[[#This Row],[План ДВН, чел.]]*100,1) -> 25.5 | K58: 0
A59: Март | B59: ДВН | C59: ЦРБ Боровского района | D59: 189 | E59: 401.30711 | F59: 1227 | G59: =Таблица1[[#This Row],[Оплачено случаев]]-Таблица1[[#This Row],[План ДВН, чел.]] -> -1038 | H59: =ROUND(Таблица1[[#This Row],[Оплачено случаев]]/Таблица1[[#This Row],[План ДВН, чел.]]*100,1) -> 15.4 | K59: 0
A60: Март | B60: ДВН | C60: ЦРБ Жуковского района | D60: 23 | E60: 8.52097 | F60: 978 | G60: =Таблица1[[#This Row],[Оплачено случаев]]-Таблица1[[#This Row],[План ДВН, чел.]] -> -955 | H60: =ROUND(Таблица1[[#This Row],[Оплачено случаев]]/Таблица1[[#This Row],[План ДВН, чел.]]*100,1) -> 2.4 | K60: 0
A61: Март | B61: ДВН | C61: ГП "Город Кременки" | D61: 0 | E61: 0 | F61: 188 | G61: =Таблица1[[#This Row],[Оплачено случаев]]-Таблица1[[#This Row],[План ДВН, чел.]] -> -188 | H61: =ROUND(Таблица1[[#This Row],[Оплачено случаев]]/Таблица1[[#This Row],[План ДВН, чел.]]*100,1) -> 0 | K61: 0
A62: Март | B62: ДВН | C62: ЦРБ Малоярославецкого района | D62: 497 | E62: 693.2822 | F62: 1269 | G62: =Таблица1[[#This Row],[Оплачено случаев]]-Таблица1[[#This Row],[План ДВН, чел.]] -> -772 | H62: =ROUND(Таблица1[[#This Row],[Оплачено случаев]]/Таблица1[[#This Row],[План ДВН, чел.]]*100,1) -> 39.2 | K62: 0
A63: Март | B63: ДВН | C63: ЦРБ Тарусского района | D63: 8 | E63: 6.20971 | F63: 606 | G63: =Таблица1[[#This Row],[Оплачено случаев]]-Таблица1[[#This Row],[План ДВН, чел.]] -> -598 | H63: =ROUND(Таблица1[[#This Row],[Оплачено случаев]]/Таблица1[[#This Row],[План ДВН, чел.]]*100,1) -> 1.3 | K63: 0
A64: Апрель | B64: ДВН | C64: ЦМБ № 1 | D64: =Y4 -> 0 | E64: =Z4 -> 0 | F64: =AA4 -> 0 | G64: =Таблица1[[#This Row],[Оплачено случаев]]-Таблица1[[#This Row],[План ДВН, чел.]] -> 0 | H64: =ROUND(Таблица1[[#This Row],[Оплачено случаев]]/Таблица1[[#This Row],[План ДВН, чел.]]*100,1) ->  | K64: =K43/1000 -> 0
A65: Апрель | B65: ДВН | C65: ЦМБ № 2 | D65: 0 | E65: 0 | F65: 0 | G65: =Таблица1[[#This Row],[Оплачено случаев]]-Таблица1[[#This Row],[План ДВН, чел.]] -> 0 | H65: =ROUND(Таблица1[[#This Row],[Оплачено случаев]]/Таблица1[[#This Row],[План ДВН, чел.]]*100,1) ->  | K65: =#REF!/1000 -> 
A66: Апрель | B66: ДВН | C66: ЦМБ № 3 | D66: 0 | E66: 0 | F66: 0 | G66: =Таблица1[[#This Row],[Оплачено случаев]]-Таблица1[[#This Row],[План ДВН, чел.]] -> 0 | H66: =ROUND(Таблица1[[#This Row],[Оплачено случаев]]/Таблица1[[#This Row],[План ДВН, чел.]]*100,1) ->  | K66: =K44/1000 -> 0
A67: Апрель | B67: ДВН | C67: ЦМБ № 4 | D67: 0 | E67: 0 | F67: 0 | G67: =Таблица1[[#This Row],[Оплачено случаев]]-Таблица1[[#This Row],[План ДВН, чел.]] -> 0 | H67: =ROUND(Таблица1[[#This Row],[Оплачено случаев]]/Таблица1[[#This Row],[План ДВН, чел.]]*100,1) -> 
A68: Апрель | B68: ДВН | C68: ЦМБ № 5 | D68: 0 | E68: 0 | F68: 0 | G68: =Таблица1[[#This Row],[Оплачено случаев]]-Таблица1[[#This Row],[План ДВН, чел.]] -> 0 | H68: =ROUND(Таблица1[[#This Row],[Оплачено случаев]]/Таблица1[[#This Row],[План ДВН, чел.]]*100,1) ->  | K68: 0
A69: Апрель | B69: ДВН | C69: ЦМБ № 6 | D69: 0 | E69: 0 | F69: 0 | G69: =Таблица1[[#This Row],[Оплачено случаев]]-Таблица1[[#This Row],[План ДВН, чел.]] -> 0 | H69: =ROUND(Таблица1[[#This Row],[Оплачено случаев]]/Таблица1[[#This Row],[План ДВН, чел.]]*100,1) ->  | K69: 0
A70: Апрель | B70: ДВН | C70: КГБ № 5 | D70: 0 | E70: 0 | F70: 0 | G70: =Таблица1[[#This Row],[Оплачено случаев]]-Таблица1[[#This Row],[План ДВН, чел.]] -> 0 | H70: =ROUND(Таблица1[[#This Row],[Оплачено случаев]]/Таблица1[[#This Row],[План ДВН, чел.]]*100,1) ->  | K70: 0
A71: Апрель | B71: ДВН | C71: КГКБ № 4 | D71: 0 | E71: 0 | F71: 0 | G71: =Таблица1[[#This Row],[Оплачено случаев]]-Таблица1[[#This Row],[План ДВН, чел.]] -> 0 | H71: =ROUND(Таблица1[[#This Row],[Оплачено случаев]]/Таблица1[[#This Row],[План ДВН, чел.]]*100,1) ->  | K71: 0
A72: Апрель | B72: ДВН | C72: Городская поликлиника | D72: 0 | E72: 0 | F72: 0 | G72: =Таблица1[[#This Row],[Оплачено случаев]]-Таблица1[[#This Row],[План ДВН, чел.]] -> 0 | H72: =ROUND(Таблица1[[#This Row],[Оплачено случаев]]/Таблица1[[#This Row],[План ДВН, чел.]]*100,1) ->  | K72: 0
A73: Апрель | B73: ДВН | C73: МСЧ № 1 г. Калуги | D73: 0 | E73: 0 | F73: 0 | G73: =Таблица1[[#This Row],[Оплачено случаев]]-Таблица1[[#This Row],[План ДВН, чел.]] -> 0 | H73: =ROUND(Таблица1[[#This Row],[Оплачено случаев]]/Таблица1[[#This Row],[План ДВН, чел.]]*100,1) ->  | K73: 0
A74: Апрель | B74: ДВН | C74: МСЧ № 2 г. Калуги | D74: 0 | E74: 0 | F74: 0 | G74: =Таблица1[[#This Row],[Оплачено случаев]]-Таблица1[[#This Row],[План ДВН, чел.]] -> 0 | H74: =ROUND(Таблица1[[#This Row],[Оплачено случаев]]/Таблица1[[#This Row],[План ДВН, чел.]]*100,1) ->  | K74: 0
A75: Апрель | B75: ДВН | C75: МСЧ МВД | D75: 0 | E75: 0 | F75: 0 | G75: =Таблица1[[#This Row],[Оплачено случаев]]-Таблица1[[#This Row],[План ДВН, чел.]] -> 0 | H75: =ROUND(Таблица1[[#This Row],[Оплачено случаев]]/Таблица1[[#This Row],[План ДВН, чел.]]*100,1) ->  | K75: 0
A76: Апрель | B76: ДВН | C76: ЧУЗ "Больница "РЖД - Медицина" | D76: 0 | E76: 0 | F76: 0 | G76: =Таблица1[[#This Row],[Оплачено случаев]]-Таблица1[[#This Row],[План ДВН, чел.]] -> 0 | H76: =ROUND(Таблица1[[#This Row],[Оплачено случаев]]/Таблица1[[#This Row],[План ДВН, чел.]]*100,1) ->  | K76: 0
A77: Апрель | B77: ДВН | C77: КБ № 8 ФМБА | D77: 0 | E77: 0 | F77: 0 | G77: =Таблица1[[#This Row],[Оплачено случаев]]-Таблица1[[#This Row],[План ДВН, чел.]] -> 0 | H77: =ROUND(Таблица1[[#This Row],[Оплачено случаев]]/Таблица1[[#This Row],[План ДВН, чел.]]*100,1) ->  | K77: 0
A78: Апрель | B78: ДВН | C78: ЦРБ Бабынинского района | D78: 0 | E78: 0 | F78: 0 | G78: =Таблица1[[#This Row],[Оплачено случаев]]-Таблица1[[#This Row],[План ДВН, чел.]] -> 0 | H78: =ROUND(Таблица1[[#This Row],[Оплачено случаев]]/Таблица1[[#This Row],[План ДВН, чел.]]*100,1) ->  | K78: 0
A79: Апрель | B79: ДВН | C79: ЦРБ Боровского района | D79: 0 | E79: 0 | F79: 0 | G79: =Таблица1[[#This Row],[Оплачено случаев]]-Таблица1[[#This Row],[План ДВН, чел.]] -> 0 | H79: =ROUND(Таблица1[[#This Row],[Оплачено случаев]]/Таблица1[[#This Row],[План ДВН, чел.]]*100,1) ->  | K79: 0
A80: Апрель | B80: ДВН | C80: ЦРБ Жуковского района | D80: 0 | E80: 0 | F80: 0 | G80: =Таблица1[[#This Row],[Оплачено случаев]]-Таблица1[[#This Row],[План ДВН, чел.]] -> 0 | H80: =ROUND(Таблица1[[#This Row],[Оплачено случаев]]/Таблица1[[#This Row],[План ДВН, чел.]]*100,1) ->  | K80: 0
A81: Апрель | B81: ДВН | C81: ГП "Город Кременки" | D81: 0 | E81: 0 | F81: 0 | G81: =Таблица1[[#This Row],[Оплачено случаев]]-Таблица1[[#This Row],[План ДВН, чел.]] -> 0 | H81: =ROUND(Таблица1[[#This Row],[Оплачено случаев]]/Таблица1[[#This Row],[План ДВН, чел.]]*100,1) ->  | K81: 0
A82: Апрель | B82: ДВН | C82: ЦРБ Малоярославецкого района | D82: 0 | E82: 0 | F82: 0 | G82: =Таблица1[[#This Row],[Оплачено случаев]]-Таблица1[[#This Row],[План ДВН, чел.]] -> 0 | H82: =ROUND(Таблица1[[#This Row],[Оплачено случаев]]/Таблица1[[#This Row],[План ДВН, чел.]]*100,1) ->  | K82: 0
A83: Апрель | B83: ДВН | C83: ЦРБ Тарусского района | D83: 0 | E83: 0 | F83: 0 | G83: =Таблица1[[#This Row],[Оплачено случаев]]-Таблица1[[#This Row],[План ДВН, чел.]] -> 0 | H83: =ROUND(Таблица1[[#This Row],[Оплачено случаев]]/Таблица1[[#This Row],[План ДВН, чел.]]*100,1) ->  | K83: 0
A84: Май | B84: ДВН | C84: ЦМБ № 1 | D84: =AD4 -> 0 | E84: =AE4 -> 0 | F84: =AF4 -> 0 | G84: =Таблица1[[#This Row],[Оплачено случаев]]-Таблица1[[#This Row],[План ДВН, чел.]] -> 0 | H84: =ROUND(Таблица1[[#This Row],[Оплачено случаев]]/Таблица1[[#This Row],[План ДВН, чел.]]*100,1) ->  | K84: =K63/1000 -> 0
A85: Май | B85: ДВН | C85: ЦМБ № 2 | D85: 0 | E85: 0 | F85: 0 | G85: =Таблица1[[#This Row],[Оплачено случаев]]-Таблица1[[#This Row],[План ДВН, чел.]] -> 0 | H85: =ROUND(Таблица1[[#This Row],[Оплачено случаев]]/Таблица1[[#This Row],[План ДВН, чел.]]*100,1) ->  | K85: =#REF!/1000 -> 
A86: Май | B86: ДВН | C86: ЦМБ № 3 | D86: 0 | E86: 0 | F86: 0 | G86: =Таблица1[[#This Row],[Оплачено случаев]]-Таблица1[[#This Row],[План ДВН, чел.]] -> 0 | H86: =ROUND(Таблица1[[#This Row],[Оплачено случаев]]/Таблица1[[#This Row],[План ДВН, чел.]]*100,1) ->  | K86: =K64/1000 -> 0
A87: Май | B87: ДВН | C87: ЦМБ № 4 | D87: 0 | E87: 0 | F87: 0 | G87: =Таблица1[[#This Row],[Оплачено случаев]]-Таблица1[[#This Row],[План ДВН, чел.]] -> 0 | H87: =ROUND(Таблица1[[#This Row],[Оплачено случаев]]/Таблица1[[#This Row],[План ДВН, чел.]]*100,1) -> 
A88: Май | B88: ДВН | C88: ЦМБ № 5 | D88: 0 | E88: 0 | F88: 0 | G88: =Таблица1[[#This Row],[Оплачено случаев]]-Таблица1[[#This Row],[План ДВН, чел.]] -> 0 | H88: =ROUND(Таблица1[[#This Row],[Оплачено случаев]]/Таблица1[[#This Row],[План ДВН, чел.]]*100,1) ->  | K88: 0
A89: Май | B89: ДВН | C89: ЦМБ № 6 | D89: 0 | E89: 0 | F89: 0 | G89: =Таблица1[[#This Row],[Оплачено случаев]]-Таблица1[[#This Row],[План ДВН, чел.]] -> 0 | H89: =ROUND(Таблица1[[#This Row],[Оплачено случаев]]/Таблица1[[#This Row],[План ДВН, чел.]]*100,1) -> 
A90: Май | B90: ДВН | C90: КГБ № 5 | D90: 0 | E90: 0 | F90: 0 | G90: =Таблица1[[#This Row],[Оплачено случаев]]-Таблица1[[#This Row],[План ДВН, чел.]] -> 0 | H90: =ROUND(Таблица1[[#This Row],[Оплачено случаев]]/Таблица1[[#This Row],[План ДВН, чел.]]*100,1) ->  | K90: 0
A91: Май | B91: ДВН | C91: КГКБ № 4 | D91: 0 | E91: 0 | F91: 0 | G91: =Таблица1[[#This Row],[Оплачено случаев]]-Таблица1[[#This Row],[План ДВН, чел.]] -> 0 | H91: =ROUND(Таблица1[[#This Row],[Оплачено случаев]]/Таблица1[[#This Row],[План ДВН, чел.]]*100,1) ->  | K91: 0
A92: Май | B92: ДВН | C92: Городская поликлиника | D92: 0 | E92: 0 | F92: 0 | G92: =Таблица1[[#This Row],[Оплачено случаев]]-Таблица1[[#This Row],[План ДВН, чел.]] -> 0 | H92: =ROUND(Таблица1[[#This Row],[Оплачено случаев]]/Таблица1[[#This Row],[План ДВН, чел.]]*100,1) ->  | K92: 0
A93: Май | B93: ДВН | C93: МСЧ № 1 г. Калуги | D93: 0 | E93: 0 | F93: 0 | G93: =Таблица1[[#This Row],[Оплачено случаев]]-Таблица1[[#This Row],[План ДВН, чел.]] -> 0 | H93: =ROUND(Таблица1[[#This Row],[Оплачено случаев]]/Таблица1[[#This Row],[План ДВН, чел.]]*100,1) ->  | K93: 0
A94: Май | B94: ДВН | C94: МСЧ № 2 г. Калуги | D94: 0 | E94: 0 | F94: 0 | G94: =Таблица1[[#This Row],[Оплачено случаев]]-Таблица1[[#This Row],[План ДВН, чел.]] -> 0 | H94: =ROUND(Таблица1[[#This Row],[Оплачено случаев]]/Таблица1[[#This Row],[План ДВН, чел.]]*100,1) ->  | K94: 0
A95: Май | B95: ДВН | C95: МСЧ МВД | D95: 0 | E95: 0 | F95: 0 | G95: =Таблица1[[#This Row],[Оплачено случаев]]-Таблица1[[#This Row],[План ДВН, чел.]] -> 0 | H95: =ROUND(Таблица1[[#This Row],[Оплачено случаев]]/Таблица1[[#This Row],[План ДВН, чел.]]*100,1) ->  | K95: 0
A96: Май | B96: ДВН | C96: ЧУЗ "Больница "РЖД - Медицина" | D96: 0 | E96: 0 | F96: 0 | G96: =Таблица1[[#This Row],[Оплачено случаев]]-Таблица1[[#This Row],[План ДВН, чел.]] -> 0 | H96: =ROUND(Таблица1[[#This Row],[Оплачено случаев]]/Таблица1[[#This Row],[План ДВН, чел.]]*100,1) ->  | K96: 0
A97: Май | B97: ДВН | C97: КБ № 8 ФМБА | D97: 0 | E97: 0 | F97: 0 | G97: =Таблица1[[#This Row],[Оплачено случаев]]-Таблица1[[#This Row],[План ДВН, чел.]] -> 0 | H97: =ROUND(Таблица1[[#This Row],[Оплачено случаев]]/Таблица1[[#This Row],[План ДВН, чел.]]*100,1) ->  | K97: 0
A98: Май | B98: ДВН | C98: ЦРБ Бабынинского района | D98: 0 | E98: 0 | F98: 0 | G98: =Таблица1[[#This Row],[Оплачено случаев]]-Таблица1[[#This Row],[План ДВН, чел.]] -> 0 | H98: =ROUND(Таблица1[[#This Row],[Оплачено случаев]]/Таблица1[[#This Row],[План ДВН, чел.]]*100,1) ->  | K98: 0
A99: Май | B99: ДВН | C99: ЦРБ Боровского района | D99: 0 | E99: 0 | F99: 0 | G99: =Таблица1[[#This Row],[Оплачено случаев]]-Таблица1[[#This Row],[План ДВН, чел.]] -> 0 | H99: =ROUND(Таблица1[[#This Row],[Оплачено случаев]]/Таблица1[[#This Row],[План ДВН, чел.]]*100,1) ->  | K99: 0
A100: Май | B100: ДВН | C100: ЦРБ Жуковского района | D100: 0 | E100: 0 | F100: 0 | G100: =Таблица1[[#This Row],[Оплачено случаев]]-Таблица1[[#This Row],[План ДВН, чел.]] -> 0 | H100: =ROUND(Таблица1[[#This Row],[Оплачено случаев]]/Таблица1[[#This Row],[План ДВН, чел.]]*100,1) ->  | K100: 0
A101: Май | B101: ДВН | C101: ГП "Город Кременки" | D101: 0 | E101: 0 | F101: 0 | G101: =Таблица1[[#This Row],[Оплачено случаев]]-Таблица1[[#This Row],[План ДВН, чел.]] -> 0 | H101: =ROUND(Таблица1[[#This Row],[Оплачено случаев]]/Таблица1[[#This Row],[План ДВН, чел.]]*100,1) ->  | K101: 0
A102: Май | B102: ДВН | C102: ЦРБ Малоярославецкого района | D102: 0 | E102: 0 | F102: 0 | G102: =Таблица1[[#This Row],[Оплачено случаев]]-Таблица1[[#This Row],[План ДВН, чел.]] -> 0 | H102: =ROUND(Таблица1[[#This Row],[Оплачено случаев]]/Таблица1[[#This Row],[План ДВН, чел.]]*100,1) ->  | K102: 0
A103: Май | B103: ДВН | C103: ЦРБ Тарусского района | D103: 0 | E103: 0 | F103: 0 | G103: =Таблица1[[#This Row],[Оплачено случаев]]-Таблица1[[#This Row],[План ДВН, чел.]] -> 0 | H103: =ROUND(Таблица1[[#This Row],[Оплачено случаев]]/Таблица1[[#This Row],[План ДВН, чел.]]*100,1) ->  | K103: 0
A104: Июнь | B104: ДВН | C104: ЦМБ № 1 | D104: =AI4 -> 0 | E104: =AJ4 -> 0 | F104: =AK4 -> 0 | G104: =Таблица1[[#This Row],[Оплачено случаев]]-Таблица1[[#This Row],[План ДВН, чел.]] -> 0 | H104: =ROUND(Таблица1[[#This Row],[Оплачено случаев]]/Таблица1[[#This Row],[План ДВН, чел.]]*100,1) ->  | K104: =K83/1000 -> 0
A105: Июнь | B105: ДВН | C105: ЦМБ № 2 | D105: 0 | E105: 0 | F105: 0 | G105: =Таблица1[[#This Row],[Оплачено случаев]]-Таблица1[[#This Row],[План ДВН, чел.]] -> 0 | H105: =ROUND(Таблица1[[#This Row],[Оплачено случаев]]/Таблица1[[#This Row],[План ДВН, чел.]]*100,1) ->  | K105: =#REF!/1000 -> 
A106: Июнь | B106: ДВН | C106: ЦМБ № 3 | D106: 0 | E106: 0 | F106: 0 | G106: =Таблица1[[#This Row],[Оплачено случаев]]-Таблица1[[#This Row],[План ДВН, чел.]] -> 0 | H106: =ROUND(Таблица1[[#This Row],[Оплачено случаев]]/Таблица1[[#This Row],[План ДВН, чел.]]*100,1) ->  | K106: =K84/1000 -> 0
A107: Июнь | B107: ДВН | C107: ЦМБ № 4 | D107: 0 | E107: 0 | F107: 0 | G107: =Таблица1[[#This Row],[Оплачено случаев]]-Таблица1[[#This Row],[План ДВН, чел.]] -> 0 | H107: =ROUND(Таблица1[[#This Row],[Оплачено случаев]]/Таблица1[[#This Row],[План ДВН, чел.]]*100,1) -> 
A108: Июнь | B108: ДВН | C108: ЦМБ № 5 | D108: 0 | E108: 0 | F108: 0 | G108: =Таблица1[[#This Row],[Оплачено случаев]]-Таблица1[[#This Row],[План ДВН, чел.]] -> 0 | H108: =ROUND(Таблица1[[#This Row],[Оплачено случаев]]/Таблица1[[#This Row],[План ДВН, чел.]]*100,1) ->  | K108: 0
A109: Июнь | B109: ДВН | C109: ЦМБ № 6 | D109: 0 | E109: 0 | F109: 0 | G109: =Таблица1[[#This Row],[Оплачено случаев]]-Таблица1[[#This Row],[План ДВН, чел.]] -> 0 | H109: =ROUND(Таблица1[[#This Row],[Оплачено случаев]]/Таблица1[[#This Row],[План ДВН, чел.]]*100,1) -> 
A110: Июнь | B110: ДВН | C110: КГБ № 5 | D110: 0 | E110: 0 | F110: 0 | G110: =Таблица1[[#This Row],[Оплачено случаев]]-Таблица1[[#This Row],[План ДВН, чел.]] -> 0 | H110: =ROUND(Таблица1[[#This Row],[Оплачено случаев]]/Таблица1[[#This Row],[План ДВН, чел.]]*100,1) ->  | K110: 0
A111: Июнь | B111: ДВН | C111: КГКБ № 4 | D111: 0 | E111: 0 | F111: 0 | G111: =Таблица1[[#This Row],[Оплачено случаев]]-Таблица1[[#This Row],[План ДВН, чел.]] -> 0 | H111: =ROUND(Таблица1[[#This Row],[Оплачено случаев]]/Таблица1[[#This Row],[План ДВН, чел.]]*100,1) -> 
A112: Июнь | B112: ДВН | C112: Городская поликлиника | D112: 0 | E112: 0 | F112: 0 | G112: =Таблица1[[#This Row],[Оплачено случаев]]-Таблица1[[#This Row],[План ДВН, чел.]] -> 0 | H112: =ROUND(Таблица1[[#This Row],[Оплачено случаев]]/Таблица1[[#This Row],[План ДВН, чел.]]*100,1) ->  | K112: 0
A113: Июнь | B113: ДВН | C113: МСЧ № 1 г. Калуги | D113: 0 | E113: 0 | F113: 0 | G113: =Таблица1[[#This Row],[Оплачено случаев]]-Таблица1[[#This Row],[План ДВН, чел.]] -> 0 | H113: =ROUND(Таблица1[[#This Row],[Оплачено случаев]]/Таблица1[[#This Row],[План ДВН, чел.]]*100,1) ->  | K113: 0
A114: Июнь | B114: ДВН | C114: МСЧ № 2 г. Калуги | D114: 0 | E114: 0 | F114: 0 | G114: =Таблица1[[#This Row],[Оплачено случаев]]-Таблица1[[#This Row],[План ДВН, чел.]] -> 0 | H114: =ROUND(Таблица1[[#This Row],[Оплачено случаев]]/Таблица1[[#This Row],[План ДВН, чел.]]*100,1) ->  | K114: 0
A115: Июнь | B115: ДВН | C115: МСЧ МВД | D115: 0 | E115: 0 | F115: 0 | G115: =Таблица1[[#This Row],[Оплачено случаев]]-Таблица1[[#This Row],[План ДВН, чел.]] -> 0 | H115: =ROUND(Таблица1[[#This Row],[Оплачено случаев]]/Таблица1[[#This Row],[План ДВН, чел.]]*100,1) ->  | K115: 0
A116: Июнь | B116: ДВН | C116: ЧУЗ "Больница "РЖД - Медицина" | D116: 0 | E116: 0 | F116: 0 | G116: =Таблица1[[#This Row],[Оплачено случаев]]-Таблица1[[#This Row],[План ДВН, чел.]] -> 0 | H116: =ROUND(Таблица1[[#This Row],[Оплачено случаев]]/Таблица1[[#This Row],[План ДВН, чел.]]*100,1) ->  | K116: 0
A117: Июнь | B117: ДВН | C117: КБ № 8 ФМБА | D117: 0 | E117: 0 | F117: 0 | G117: =Таблица1[[#This Row],[Оплачено случаев]]-Таблица1[[#This Row],[План ДВН, чел.]] -> 0 | H117: =ROUND(Таблица1[[#This Row],[Оплачено случаев]]/Таблица1[[#This Row],[План ДВН, чел.]]*100,1) ->  | K117: 0
A118: Июнь | B118: ДВН | C118: ЦРБ Бабынинского района | D118: 0 | E118: 0 | F118: 0 | G118: =Таблица1[[#This Row],[Оплачено случаев]]-Таблица1[[#This Row],[План ДВН, чел.]] -> 0 | H118: =ROUND(Таблица1[[#This Row],[Оплачено случаев]]/Таблица1[[#This Row],[План ДВН, чел.]]*100,1) ->  | K118: 0
A119: Июнь | B119: ДВН | C119: ЦРБ Боровского района | D119: 0 | E119: 0 | F119: 0 | G119: =Таблица1[[#This Row],[Оплачено случаев]]-Таблица1[[#This Row],[План ДВН, чел.]] -> 0 | H119: =ROUND(Таблица1[[#This Row],[Оплачено случаев]]/Таблица1[[#This Row],[План ДВН, чел.]]*100,1) ->  | K119: 0
A120: Июнь | B120: ДВН | C120: ЦРБ Жуковского района | D120: 0 | E120: 0 | F120: 0 | G120: =Таблица1[[#This Row],[Оплачено случаев]]-Таблица1[[#This Row],[План ДВН, чел.]] -> 0 | H120: =ROUND(Таблица1[[#This Row],[Оплачено случаев]]/Таблица1[[#This Row],[План ДВН, чел.]]*100,1) ->  | K120: 0
A121: Июнь | B121: ДВН | C121: ГП "Город Кременки" | D121: 0 | E121: 0 | F121: 0 | G121: =Таблица1[[#This Row],[Оплачено случаев]]-Таблица1[[#This Row],[План ДВН, чел.]] -> 0 | H121: =ROUND(Таблица1[[#This Row],[Оплачено случаев]]/Таблица1[[#This Row],[План ДВН, чел.]]*100,1) ->  | K121: 0
A122: Июнь | B122: ДВН | C122: ЦРБ Малоярославецкого района | D122: 0 | E122: 0 | F122: 0 | G122: =Таблица1[[#This Row],[Оплачено случаев]]-Таблица1[[#This Row],[План ДВН, чел.]] -> 0 | H122: =ROUND(Таблица1[[#This Row],[Оплачено случаев]]/Таблица1[[#This Row],[План ДВН, чел.]]*100,1) ->  | K122: 0
A123: Июнь | B123: ДВН | C123: ЦРБ Тарусского района | D123: 0 | E123: 0 | F123: 0 | G123: =Таблица1[[#This Row],[Оплачено случаев]]-Таблица1[[#This Row],[План ДВН, чел.]] -> 0 | H123: =ROUND(Таблица1[[#This Row],[Оплачено случаев]]/Таблица1[[#This Row],[План ДВН, чел.]]*100,1) ->  | K123: 0
A124: Июль | B124: ДВН | C124: ЦМБ № 1 | D124: =AN4 -> 0 | E124: =AO4 -> 0 | F124: =AP4 -> 0 | G124: =Таблица1[[#This Row],[Оплачено случаев]]-Таблица1[[#This Row],[План ДВН, чел.]] -> 0 | H124: =ROUND(Таблица1[[#This Row],[Оплачено случаев]]/Таблица1[[#This Row],[План ДВН, чел.]]*100,1) -> 
A125: Июль | B125: ДВН | C125: ЦМБ № 2 | D125: 0 | E125: 0 | F125: 0 | G125: =Таблица1[[#This Row],[Оплачено случаев]]-Таблица1[[#This Row],[План ДВН, чел.]] -> 0 | H125: =ROUND(Таблица1[[#This Row],[Оплачено случаев]]/Таблица1[[#This Row],[План ДВН, чел.]]*100,1) -> 
A126: Июль | B126: ДВН | C126: ЦМБ № 3 | D126: 0 | E126: 0 | F126: 0 | G126: =Таблица1[[#This Row],[Оплачено случаев]]-Таблица1[[#This Row],[План ДВН, чел.]] -> 0 | H126: =ROUND(Таблица1[[#This Row],[Оплачено случаев]]/Таблица1[[#This Row],[План ДВН, чел.]]*100,1) -> 
A127: Июль | B127: ДВН | C127: ЦМБ № 4 | D127: 0 | E127: 0 | F127: 0 | G127: =Таблица1[[#This Row],[Оплачено случаев]]-Таблица1[[#This Row],[План ДВН, чел.]] -> 0 | H127: =ROUND(Таблица1[[#This Row],[Оплачено случаев]]/Таблица1[[#This Row],[План ДВН, чел.]]*100,1) -> 
A128: Июль | B128: ДВН | C128: ЦМБ № 5 | D128: 0 | E128: 0 | F128: 0 | G128: =Таблица1[[#This Row],[Оплачено случаев]]-Таблица1[[#This Row],[План ДВН, чел.]] -> 0 | H128: =ROUND(Таблица1[[#This Row],[Оплачено случаев]]/Таблица1[[#This Row],[План ДВН, чел.]]*100,1) -> 
A129: Июль | B129: ДВН | C129: ЦМБ № 6 | D129: 0 | E129: 0 | F129: 0 | G129: =Таблица1[[#This Row],[Оплачено случаев]]-Таблица1[[#This Row],[План ДВН, чел.]] -> 0 | H129: =ROUND(Таблица1[[#This Row],[Оплачено случаев]]/Таблица1[[#This Row],[План ДВН, чел.]]*100,1) -> 
A130: Июль | B130: ДВН | C130: КГБ № 5 | D130: 0 | E130: 0 | F130: 0 | G130: =Таблица1[[#This Row],[Оплачено случаев]]-Таблица1[[#This Row],[План ДВН, чел.]] -> 0 | H130: =ROUND(Таблица1[[#This Row],[Оплачено случаев]]/Таблица1[[#This Row],[План ДВН, чел.]]*100,1) -> 
A131: Июль | B131: ДВН | C131: КГКБ № 4 | D131: 0 | E131: 0 | F131: 0 | G131: =Таблица1[[#This Row],[Оплачено случаев]]-Таблица1[[#This Row],[План ДВН, чел.]] -> 0 | H131: =ROUND(Таблица1[[#This Row],[Оплачено случаев]]/Таблица1[[#This Row],[План ДВН, чел.]]*100,1) -> 
A132: Июль | B132: ДВН | C132: Городская поликлиника | D132: 0 | E132: 0 | F132: 0 | G132: =Таблица1[[#This Row],[Оплачено случаев]]-Таблица1[[#This Row],[План ДВН, чел.]] -> 0 | H132: =ROUND(Таблица1[[#This Row],[Оплачено случаев]]/Таблица1[[#This Row],[План ДВН, чел.]]*100,1) -> 
A133: Июль | B133: ДВН | C133: МСЧ № 1 г. Калуги | D133: 0 | E133: 0 | F133: 0 | G133: =Таблица1[[#This Row],[Оплачено случаев]]-Таблица1[[#This Row],[План ДВН, чел.]] -> 0 | H133: =ROUND(Таблица1[[#This Row],[Оплачено случаев]]/Таблица1[[#This Row],[План ДВН, чел.]]*100,1) -> 
A134: Июль | B134: ДВН | C134: МСЧ № 2 г. Калуги | D134: 0 | E134: 0 | F134: 0 | G134: =Таблица1[[#This Row],[Оплачено случаев]]-Таблица1[[#This Row],[План ДВН, чел.]] -> 0 | H134: =ROUND(Таблица1[[#This Row],[Оплачено случаев]]/Таблица1[[#This Row],[План ДВН, чел.]]*100,1) -> 
A135: Июль | B135: ДВН | C135: МСЧ МВД | D135: 0 | E135: 0 | F135: 0 | G135: =Таблица1[[#This Row],[Оплачено случаев]]-Таблица1[[#This Row],[План ДВН, чел.]] -> 0 | H135: =ROUND(Таблица1[[#This Row],[Оплачено случаев]]/Таблица1[[#This Row],[План ДВН, чел.]]*100,1) -> 
A136: Июль | B136: ДВН | C136: ЧУЗ "Больница "РЖД - Медицина" | D136: 0 | E136: 0 | F136: 0 | G136: =Таблица1[[#This Row],[Оплачено случаев]]-Таблица1[[#This Row],[План ДВН, чел.]] -> 0 | H136: =ROUND(Таблица1[[#This Row],[Оплачено случаев]]/Таблица1[[#This Row],[План ДВН, чел.]]*100,1) -> 
A137: Июль | B137: ДВН | C137: КБ № 8 ФМБА | D137: 0 | E137: 0 | F137: 0 | G137: =Таблица1[[#This Row],[Оплачено случаев]]-Таблица1[[#This Row],[План ДВН, чел.]] -> 0 | H137: =ROUND(Таблица1[[#This Row],[Оплачено случаев]]/Таблица1[[#This Row],[План ДВН, чел.]]*100,1) -> 
A138: Июль | B138: ДВН | C138: ЦРБ Бабынинского района | D138: 0 | E138: 0 | F138: 0 | G138: =Таблица1[[#This Row],[Оплачено случаев]]-Таблица1[[#This Row],[План ДВН, чел.]] -> 0 | H138: =ROUND(Таблица1[[#This Row],[Оплачено случаев]]/Таблица1[[#This Row],[План ДВН, чел.]]*100,1) -> 
A139: Июль | B139: ДВН | C139: ЦРБ Боровского района | D139: 0 | E139: 0 | F139: 0 | G139: =Таблица1[[#This Row],[Оплачено случаев]]-Таблица1[[#This Row],[План ДВН, чел.]] -> 0 | H139: =ROUND(Таблица1[[#This Row],[Оплачено случаев]]/Таблица1[[#This Row],[План ДВН, чел.]]*100,1) -> 
A140: Июль | B140: ДВН | C140: ЦРБ Жуковского района | D140: 0 | E140: 0 | F140: 0 | G140: =Таблица1[[#This Row],[Оплачено случаев]]-Таблица1[[#This Row],[План ДВН, чел.]] -> 0 | H140: =ROUND(Таблица1[[#This Row],[Оплачено случаев]]/Таблица1[[#This Row],[План ДВН, чел.]]*100,1) -> 
A141: Июль | B141: ДВН | C141: ГП "Город Кременки" | D141: 0 | E141: 0 | F141: 0 | G141: =Таблица1[[#This Row],[Оплачено случаев]]-Таблица1[[#This Row],[План ДВН, чел.]] -> 0 | H141: =ROUND(Таблица1[[#This Row],[Оплачено случаев]]/Таблица1[[#This Row],[План ДВН, чел.]]*100,1) -> 
A142: Июль | B142: ДВН | C142: ЦРБ Малоярославецкого района | D142: 0 | E142: 0 | F142: 0 | G142: =Таблица1[[#This Row],[Оплачено случаев]]-Таблица1[[#This Row],[План ДВН, чел.]] -> 0 | H142: =ROUND(Таблица1[[#This Row],[Оплачено случаев]]/Таблица1[[#This Row],[План ДВН, чел.]]*100,1) -> 
A143: Июль | B143: ДВН | C143: ЦРБ Тарусского района | D143: 0 | E143: 0 | F143: 0 | G143: =Таблица1[[#This Row],[Оплачено случаев]]-Таблица1[[#This Row],[План ДВН, чел.]] -> 0 | H143: =ROUND(Таблица1[[#This Row],[Оплачено случаев]]/Таблица1[[#This Row],[План ДВН, чел.]]*100,1) -> 
A144: Август | B144: ДВН | C144: ЦМБ № 1 | D144: =AS4 -> 0 | E144: =AT4 -> 0 | F144: =AU4 -> 0 | G144: =Таблица1[[#This Row],[Оплачено случаев]]-Таблица1[[#This Row],[План ДВН, чел.]] -> 0 | H144: =ROUND(Таблица1[[#This Row],[Оплачено случаев]]/Таблица1[[#This Row],[План ДВН, чел.]]*100,1) -> 
A145: Август | B145: ДВН | C145: ЦМБ № 2 | D145: 0 | E145: 0 | F145: 0 | G145: =Таблица1[[#This Row],[Оплачено случаев]]-Таблица1[[#This Row],[План ДВН, чел.]] -> 0 | H145: =ROUND(Таблица1[[#This Row],[Оплачено случаев]]/Таблица1[[#This Row],[План ДВН, чел.]]*100,1) -> 
A146: Август | B146: ДВН | C146: ЦМБ № 3 | D146: 0 | E146: 0 | F146: 0 | G146: =Таблица1[[#This Row],[Оплачено случаев]]-Таблица1[[#This Row],[План ДВН, чел.]] -> 0 | H146: =ROUND(Таблица1[[#This Row],[Оплачено случаев]]/Таблица1[[#This Row],[План ДВН, чел.]]*100,1) -> 
A147: Август | B147: ДВН | C147: ЦМБ № 4 | D147: 0 | E147: 0 | F147: 0 | G147: =Таблица1[[#This Row],[Оплачено случаев]]-Таблица1[[#This Row],[План ДВН, чел.]] -> 0 | H147: =ROUND(Таблица1[[#This Row],[Оплачено случаев]]/Таблица1[[#This Row],[План ДВН, чел.]]*100,1) -> 
A148: Август | B148: ДВН | C148: ЦМБ № 5 | D148: 0 | E148: 0 | F148: 0 | G148: =Таблица1[[#This Row],[Оплачено случаев]]-Таблица1[[#This Row],[План ДВН, чел.]] -> 0 | H148: =ROUND(Таблица1[[#This Row],[Оплачено случаев]]/Таблица1[[#This Row],[План ДВН, чел.]]*100,1) -> 
A149: Август | B149: ДВН | C149: ЦМБ № 6 | D149: 0 | E149: 0 | F149: 0 | G149: =Таблица1[[#This Row],[Оплачено случаев]]-Таблица1[[#This Row],[План ДВН, чел.]] -> 0 | H149: =ROUND(Таблица1[[#This Row],[Оплачено случаев]]/Таблица1[[#This Row],[План ДВН, чел.]]*100,1) -> 
A150: Август | B150: ДВН | C150: КГБ № 5 | D150: 0 | E150: 0 | F150: 0 | G150: =Таблица1[[#This Row],[Оплачено случаев]]-Таблица1[[#This Row],[План ДВН, чел.]] -> 0 | H150: =ROUND(Таблица1[[#This Row],[Оплачено случаев]]/Таблица1[[#This Row],[План ДВН, чел.]]*100,1) -> 
A151: Август | B151: ДВН | C151: КГКБ № 4 | D151: 0 | E151: 0 | F151: 0 | G151: =Таблица1[[#This Row],[Оплачено случаев]]-Таблица1[[#This Row],[План ДВН, чел.]] -> 0 | H151: =ROUND(Таблица1[[#This Row],[Оплачено случаев]]/Таблица1[[#This Row],[План ДВН, чел.]]*100,1) -> 
A152: Август | B152: ДВН | C152: Городская поликлиника | D152: 0 | E152: 0 | F152: 0 | G152: =Таблица1[[#This Row],[Оплачено случаев]]-Таблица1[[#This Row],[План ДВН, чел.]] -> 0 | H152: =ROUND(Таблица1[[#This Row],[Оплачено случаев]]/Таблица1[[#This Row],[План ДВН, чел.]]*100,1) -> 
A153: Август | B153: ДВН | C153: МСЧ № 1 г. Калуги | D153: 0 | E153: 0 | F153: 0 | G153: =Таблица1[[#This Row],[Оплачено случаев]]-Таблица1[[#This Row],[План ДВН, чел.]] -> 0 | H153: =ROUND(Таблица1[[#This Row],[Оплачено случаев]]/Таблица1[[#This Row],[План ДВН, чел.]]*100,1) -> 
A154: Август | B154: ДВН | C154: МСЧ № 2 г. Калуги | D154: 0 | E154: 0 | F154: 0 | G154: =Таблица1[[#This Row],[Оплачено случаев]]-Таблица1[[#This Row],[План ДВН, чел.]] -> 0 | H154: =ROUND(Таблица1[[#This Row],[Оплачено случаев]]/Таблица1[[#This Row],[План ДВН, чел.]]*100,1) -> 
A155: Август | B155: ДВН | C155: МСЧ МВД | D155: 0 | E155: 0 | F155: 0 | G155: =Таблица1[[#This Row],[Оплачено случаев]]-Таблица1[[#This Row],[План ДВН, чел.]] -> 0 | H155: =ROUND(Таблица1[[#This Row],[Оплачено случаев]]/Таблица1[[#This Row],[План ДВН, чел.]]*100,1) -> 
A156: Август | B156: ДВН | C156: ЧУЗ "Больница "РЖД - Медицина" | D156: 0 | E156: 0 | F156: 0 | G156: =Таблица1[[#This Row],[Оплачено случаев]]-Таблица1[[#This Row],[План ДВН, чел.]] -> 0 | H156: =ROUND(Таблица1[[#This Row],[Оплачено случаев]]/Таблица1[[#This Row],[План ДВН, чел.]]*100,1) -> 
A157: Август | B157: ДВН | C157: КБ № 8 ФМБА | D157: 0 | E157: 0 | F157: 0 | G157: =Таблица1[[#This Row],[Оплачено случаев]]-Таблица1[[#This Row],[План ДВН, чел.]] -> 0 | H157: =ROUND(Таблица1[[#This Row],[Оплачено случаев]]/Таблица1[[#This Row],[План ДВН, чел.]]*100,1) -> 
A158: Август | B158: ДВН | C158: ЦРБ Бабынинского района | D158: 0 | E158: 0 | F158: 0 | G158: =Таблица1[[#This Row],[Оплачено случаев]]-Таблица1[[#This Row],[План ДВН, чел.]] -> 0 | H158: =ROUND(Таблица1[[#This Row],[Оплачено случаев]]/Таблица1[[#This Row],[План ДВН, чел.]]*100,1) -> 
A159: Август | B159: ДВН | C159: ЦРБ Боровского района | D159: 0 | E159: 0 | F159: 0 | G159: =Таблица1[[#This Row],[Оплачено случаев]]-Таблица1[[#This Row],[План ДВН, чел.]] -> 0 | H159: =ROUND(Таблица1[[#This Row],[Оплачено случаев]]/Таблица1[[#This Row],[План ДВН, чел.]]*100,1) -> 
A160: Август | B160: ДВН | C160: ЦРБ Жуковского района | D160: 0 | E160: 0 | F160: 0 | G160: =Таблица1[[#This Row],[Оплачено случаев]]-Таблица1[[#This Row],[План ДВН, чел.]] -> 0 | H160: =ROUND(Таблица1[[#This Row],[Оплачено случаев]]/Таблица1[[#This Row],[План ДВН, чел.]]*100,1) -> 
A161: Август | B161: ДВН | C161: ГП "Город Кременки" | D161: 0 | E161: 0 | F161: 0 | G161: =Таблица1[[#This Row],[Оплачено случаев]]-Таблица1[[#This Row],[План ДВН, чел.]] -> 0 | H161: =ROUND(Таблица1[[#This Row],[Оплачено случаев]]/Таблица1[[#This Row],[План ДВН, чел.]]*100,1) -> 
A162: Август | B162: ДВН | C162: ЦРБ Малоярославецкого района | D162: 0 | E162: 0 | F162: 0 | G162: =Таблица1[[#This Row],[Оплачено случаев]]-Таблица1[[#This Row],[План ДВН, чел.]] -> 0 | H162: =ROUND(Таблица1[[#This Row],[Оплачено случаев]]/Таблица1[[#This Row],[План ДВН, чел.]]*100,1) -> 
A163: Август | B163: ДВН | C163: ЦРБ Тарусского района | D163: 0 | E163: 0 | F163: 0 | G163: =Таблица1[[#This Row],[Оплачено случаев]]-Таблица1[[#This Row],[План ДВН, чел.]] -> 0 | H163: =ROUND(Таблица1[[#This Row],[Оплачено случаев]]/Таблица1[[#This Row],[План ДВН, чел.]]*100,1) -> 
A164: Сентябрь | B164: ДВН | C164: ЦМБ № 1 | D164: =AX4 -> 0 | E164: =AY4 -> 0 | F164: =AZ4 -> 0 | G164: =Таблица1[[#This Row],[Оплачено случаев]]-Таблица1[[#This Row],[План ДВН, чел.]] -> 0 | H164: =ROUND(Таблица1[[#This Row],[Оплачено случаев]]/Таблица1[[#This Row],[План ДВН, чел.]]*100,1) -> 
A165: Сентябрь | B165: ДВН | C165: ЦМБ № 2 | D165: 0 | E165: 0 | F165: 0 | G165: =Таблица1[[#This Row],[Оплачено случаев]]-Таблица1[[#This Row],[План ДВН, чел.]] -> 0 | H165: =ROUND(Таблица1[[#This Row],[Оплачено случаев]]/Таблица1[[#This Row],[План ДВН, чел.]]*100,1) -> 
A166: Сентябрь | B166: ДВН | C166: ЦМБ № 3 | D166: 0 | E166: 0 | F166: 0 | G166: =Таблица1[[#This Row],[Оплачено случаев]]-Таблица1[[#This Row],[План ДВН, чел.]] -> 0 | H166: =ROUND(Таблица1[[#This Row],[Оплачено случаев]]/Таблица1[[#This Row],[План ДВН, чел.]]*100,1) -> 
A167: Сентябрь | B167: ДВН | C167: ЦМБ № 4 | D167: 0 | E167: 0 | F167: 0 | G167: =Таблица1[[#This Row],[Оплачено случаев]]-Таблица1[[#This Row],[План ДВН, чел.]] -> 0 | H167: =ROUND(Таблица1[[#This Row],[Оплачено случаев]]/Таблица1[[#This Row],[План ДВН, чел.]]*100,1) -> 
A168: Сентябрь | B168: ДВН | C168: ЦМБ № 5 | D168: 0 | E168: 0 | F168: 0 | G168: =Таблица1[[#This Row],[Оплачено случаев]]-Таблица1[[#This Row],[План ДВН, чел.]] -> 0 | H168: =ROUND(Таблица1[[#This Row],[Оплачено случаев]]/Таблица1[[#This Row],[План ДВН, чел.]]*100,1) -> 
A169: Сентябрь | B169: ДВН | C169: ЦМБ № 6 | D169: 0 | E169: 0 | F169: 0 | G169: =Таблица1[[#This Row],[Оплачено случаев]]-Таблица1[[#This Row],[План ДВН, чел.]] -> 0 | H169: =ROUND(Таблица1[[#This Row],[Оплачено случаев]]/Таблица1[[#This Row],[План ДВН, чел.]]*100,1) -> 
A170: Сентябрь | B170: ДВН | C170: КГБ № 5 | D170: 0 | E170: 0 | F170: 0 | G170: =Таблица1[[#This Row],[Оплачено случаев]]-Таблица1[[#This Row],[План ДВН, чел.]] -> 0 | H170: =ROUND(Таблица1[[#This Row],[Оплачено случаев]]/Таблица1[[#This Row],[План ДВН, чел.]]*100,1) -> 
A171: Сентябрь | B171: ДВН | C171: КГКБ № 4 | D171: 0 | E171: 0 | F171: 0 | G171: =Таблица1[[#This Row],[Оплачено случаев]]-Таблица1[[#This Row],[План ДВН, чел.]] -> 0 | H171: =ROUND(Таблица1[[#This Row],[Оплачено случаев]]/Таблица1[[#This Row],[План ДВН, чел.]]*100,1) -> 
A172: Сентябрь | B172: ДВН | C172: Городская поликлиника | D172: 0 | E172: 0 | F172: 0 | G172: =Таблица1[[#This Row],[Оплачено случаев]]-Таблица1[[#This Row],[План ДВН, чел.]] -> 0 | H172: =ROUND(Таблица1[[#This Row],[Оплачено случаев]]/Таблица1[[#This Row],[План ДВН, чел.]]*100,1) -> 
A173: Сентябрь | B173: ДВН | C173: МСЧ № 1 г. Калуги | D173: 0 | E173: 0 | F173: 0 | G173: =Таблица1[[#This Row],[Оплачено случаев]]-Таблица1[[#This Row],[План ДВН, чел.]] -> 0 | H173: =ROUND(Таблица1[[#This Row],[Оплачено случаев]]/Таблица1[[#This Row],[План ДВН, чел.]]*100,1) -> 
A174: Сентябрь | B174: ДВН | C174: МСЧ № 2 г. Калуги | D174: 0 | E174: 0 | F174: 0 | G174: =Таблица1[[#This Row],[Оплачено случаев]]-Таблица1[[#This Row],[План ДВН, чел.]] -> 0 | H174: =ROUND(Таблица1[[#This Row],[Оплачено случаев]]/Таблица1[[#This Row],[План ДВН, чел.]]*100,1) -> 
A175: Сентябрь | B175: ДВН | C175: МСЧ МВД | D175: 0 | E175: 0 | F175: 0 | G175: =Таблица1[[#This Row],[Оплачено случаев]]-Таблица1[[#This Row],[План ДВН, чел.]] -> 0 | H175: =ROUND(Таблица1[[#This Row],[Оплачено случаев]]/Таблица1[[#This Row],[План ДВН, чел.]]*100,1) -> 
A176: Сентябрь | B176: ДВН | C176: ЧУЗ "Больница "РЖД - Медицина" | D176: 0 | E176: 0 | F176: 0 | G176: =Таблица1[[#This Row],[Оплачено случаев]]-Таблица1[[#This Row],[План ДВН, чел.]] -> 0 | H176: =ROUND(Таблица1[[#This Row],[Оплачено случаев]]/Таблица1[[#This Row],[План ДВН, чел.]]*100,1) -> 
A177: Сентябрь | B177: ДВН | C177: КБ № 8 ФМБА | D177: 0 | E177: 0 | F177: 0 | G177: =Таблица1[[#This Row],[Оплачено случаев]]-Таблица1[[#This Row],[План ДВН, чел.]] -> 0 | H177: =ROUND(Таблица1[[#This Row],[Оплачено случаев]]/Таблица1[[#This Row],[План ДВН, чел.]]*100,1) -> 
A178: Сентябрь | B178: ДВН | C178: ЦРБ Бабынинского района | D178: 0 | E178: 0 | F178: 0 | G178: =Таблица1[[#This Row],[Оплачено случаев]]-Таблица1[[#This Row],[План ДВН, чел.]] -> 0 | H178: =ROUND(Таблица1[[#This Row],[Оплачено случаев]]/Таблица1[[#This Row],[План ДВН, чел.]]*100,1) -> 
A179: Сентябрь | B179: ДВН | C179: ЦРБ Боровского района | D179: 0 | E179: 0 | F179: 0 | G179: =Таблица1[[#This Row],[Оплачено случаев]]-Таблица1[[#This Row],[План ДВН, чел.]] -> 0 | H179: =ROUND(Таблица1[[#This Row],[Оплачено случаев]]/Таблица1[[#This Row],[План ДВН, чел.]]*100,1) -> 
A180: Сентябрь | B180: ДВН | C180: ЦРБ Жуковского района | D180: 0 | E180: 0 | F180: 0 | G180: =Таблица1[[#This Row],[Оплачено случаев]]-Таблица1[[#This Row],[План ДВН, чел.]] -> 0 | H180: =ROUND(Таблица1[[#This Row],[Оплачено случаев]]/Таблица1[[#This Row],[План ДВН, чел.]]*100,1) -> 
A181: Сентябрь | B181: ДВН | C181: ГП "Город Кременки" | D181: 0 | E181: 0 | F181: 0 | G181: =Таблица1[[#This Row],[Оплачено случаев]]-Таблица1[[#This Row],[План ДВН, чел.]] -> 0 | H181: =ROUND(Таблица1[[#This Row],[Оплачено случаев]]/Таблица1[[#This Row],[План ДВН, чел.]]*100,1) -> 
A182: Сентябрь | B182: ДВН | C182: ЦРБ Малоярославецкого района | D182: 0 | E182: 0 | F182: 0 | G182: =Таблица1[[#This Row],[Оплачено случаев]]-Таблица1[[#This Row],[План ДВН, чел.]] -> 0 | H182: =ROUND(Таблица1[[#This Row],[Оплачено случаев]]/Таблица1[[#This Row],[План ДВН, чел.]]*100,1) -> 
A183: Сентябрь | B183: ДВН | C183: ЦРБ Тарусского района | D183: 0 | E183: 0 | F183: 0 | G183: =Таблица1[[#This Row],[Оплачено случаев]]-Таблица1[[#This Row],[План ДВН, чел.]] -> 0 | H183: =ROUND(Таблица1[[#This Row],[Оплачено случаев]]/Таблица1[[#This Row],[План ДВН, чел.]]*100,1) -> 
A184: Октябрь | B184: ДВН | C184: ЦМБ № 1 | D184: =BC4 -> 0 | E184: =BD4 -> 0 | F184: =BE4 -> 0 | G184: =Таблица1[[#This Row],[Оплачено случаев]]-Таблица1[[#This Row],[План ДВН, чел.]] -> 0 | H184: =ROUND(Таблица1[[#This Row],[Оплачено случаев]]/Таблица1[[#This Row],[План ДВН, чел.]]*100,1) -> 
A185: Октябрь | B185: ДВН | C185: ЦМБ № 2 | D185: 0 | E185: 0 | F185: 0 | G185: =Таблица1[[#This Row],[Оплачено случаев]]-Таблица1[[#This Row],[План ДВН, чел.]] -> 0 | H185: =ROUND(Таблица1[[#This Row],[Оплачено случаев]]/Таблица1[[#This Row],[План ДВН, чел.]]*100,1) -> 
A186: Октябрь | B186: ДВН | C186: ЦМБ № 3 | D186: 0 | E186: 0 | F186: 0 | G186: =Таблица1[[#This Row],[Оплачено случаев]]-Таблица1[[#This Row],[План ДВН, чел.]] -> 0 | H186: =ROUND(Таблица1[[#This Row],[Оплачено случаев]]/Таблица1[[#This Row],[План ДВН, чел.]]*100,1) -> 
A187: Октябрь | B187: ДВН | C187: ЦМБ № 4 | D187: 0 | E187: 0 | F187: 0 | G187: =Таблица1[[#This Row],[Оплачено случаев]]-Таблица1[[#This Row],[План ДВН, чел.]] -> 0 | H187: =ROUND(Таблица1[[#This Row],[Оплачено случаев]]/Таблица1[[#This Row],[План ДВН, чел.]]*100,1) -> 
A188: Октябрь | B188: ДВН | C188: ЦМБ № 5 | D188: 0 | E188: 0 | F188: 0 | G188: =Таблица1[[#This Row],[Оплачено случаев]]-Таблица1[[#This Row],[План ДВН, чел.]] -> 0 | H188: =ROUND(Таблица1[[#This Row],[Оплачено случаев]]/Таблица1[[#This Row],[План ДВН, чел.]]*100,1) -> 
A189: Октябрь | B189: ДВН | C189: ЦМБ № 6 | D189: 0 | E189: 0 | F189: 0 | G189: =Таблица1[[#This Row],[Оплачено случаев]]-Таблица1[[#This Row],[План ДВН, чел.]] -> 0 | H189: =ROUND(Таблица1[[#This Row],[Оплачено случаев]]/Таблица1[[#This Row],[План ДВН, чел.]]*100,1) -> 
A190: Октябрь | B190: ДВН | C190: КГБ № 5 | D190: 0 | E190: 0 | F190: 0 | G190: =Таблица1[[#This Row],[Оплачено случаев]]-Таблица1[[#This Row],[План ДВН, чел.]] -> 0 | H190: =ROUND(Таблица1[[#This Row],[Оплачено случаев]]/Таблица1[[#This Row],[План ДВН, чел.]]*100,1) -> 
A191: Октябрь | B191: ДВН | C191: КГКБ № 4 | D191: 0 | E191: 0 | F191: 0 | G191: =Таблица1[[#This Row],[Оплачено случаев]]-Таблица1[[#This Row],[План ДВН, чел.]] -> 0 | H191: =ROUND(Таблица1[[#This Row],[Оплачено случаев]]/Таблица1[[#This Row],[План ДВН, чел.]]*100,1) -> 
A192: Октябрь | B192: ДВН | C192: Городская поликлиника | D192: 0 | E192: 0 | F192: 0 | G192: =Таблица1[[#This Row],[Оплачено случаев]]-Таблица1[[#This Row],[План ДВН, чел.]] -> 0 | H192: =ROUND(Таблица1[[#This Row],[Оплачено случаев]]/Таблица1[[#This Row],[План ДВН, чел.]]*100,1) -> 
A193: Октябрь | B193: ДВН | C193: МСЧ № 1 г. Калуги | D193: 0 | E193: 0 | F193: 0 | G193: =Таблица1[[#This Row],[Оплачено случаев]]-Таблица1[[#This Row],[План ДВН, чел.]] -> 0 | H193: =ROUND(Таблица1[[#This Row],[Оплачено случаев]]/Таблица1[[#This Row],[План ДВН, чел.]]*100,1) -> 
A194: Октябрь | B194: ДВН | C194: МСЧ № 2 г. Калуги | D194: 0 | E194: 0 | F194: 0 | G194: =Таблица1[[#This Row],[Оплачено случаев]]-Таблица1[[#This Row],[План ДВН, чел.]] -> 0 | H194: =ROUND(Таблица1[[#This Row],[Оплачено случаев]]/Таблица1[[#This Row],[План ДВН, чел.]]*100,1) -> 
A195: Октябрь | B195: ДВН | C195: МСЧ МВД | D195: 0 | E195: 0 | F195: 0 | G195: =Таблица1[[#This Row],[Оплачено случаев]]-Таблица1[[#This Row],[План ДВН, чел.]] -> 0 | H195: =ROUND(Таблица1[[#This Row],[Оплачено случаев]]/Таблица1[[#This Row],[План ДВН, чел.]]*100,1) -> 
A196: Октябрь | B196: ДВН | C196: ЧУЗ "Больница "РЖД - Медицина" | D196: 0 | E196: 0 | F196: 0 | G196: =Таблица1[[#This Row],[Оплачено случаев]]-Таблица1[[#This Row],[План ДВН, чел.]] -> 0 | H196: =ROUND(Таблица1[[#This Row],[Оплачено случаев]]/Таблица1[[#This Row],[План ДВН, чел.]]*100,1) -> 
A197: Октябрь | B197: ДВН | C197: КБ № 8 ФМБА | D197: 0 | E197: 0 | F197: 0 | G197: =Таблица1[[#This Row],[Оплачено случаев]]-Таблица1[[#This Row],[План ДВН, чел.]] -> 0 | H197: =ROUND(Таблица1[[#This Row],[Оплачено случаев]]/Таблица1[[#This Row],[План ДВН, чел.]]*100,1) -> 
A198: Октябрь | B198: ДВН | C198: ЦРБ Бабынинского района | D198: 0 | E198: 0 | F198: 0 | G198: =Таблица1[[#This Row],[Оплачено случаев]]-Таблица1[[#This Row],[План ДВН, чел.]] -> 0 | H198: =ROUND(Таблица1[[#This Row],[Оплачено случаев]]/Таблица1[[#This Row],[План ДВН, чел.]]*100,1) -> 
A199: Октябрь | B199: ДВН | C199: ЦРБ Боровского района | D199: 0 | E199: 0 | F199: 0 | G199: =Таблица1[[#This Row],[Оплачено случаев]]-Таблица1[[#This Row],[План ДВН, чел.]] -> 0 | H199: =ROUND(Таблица1[[#This Row],[Оплачено случаев]]/Таблица1[[#This Row],[План ДВН, чел.]]*100,1) -> 
A200: Октябрь | B200: ДВН | C200: ЦРБ Жуковского района | D200: 0 | E200: 0 | F200: 0 | G200: =Таблица1[[#This Row],[Оплачено случаев]]-Таблица1[[#This Row],[План ДВН, чел.]] -> 0 | H200: =ROUND(Таблица1[[#This Row],[Оплачено случаев]]/Таблица1[[#This Row],[План ДВН, чел.]]*100,1) -> 
... 43 more rows

Sheet Все МО (hidden)
A1: Месяц | B1: Март
A3: Названия строк | B3: Оплачено случаев | C3: План ДВН, чел.
A4: МСЧ № 2 г. Калуги | B4: 0 | C4: 44
A5: ЦМБ № 4 | B5: 0 | C5: 352
A6: МСЧ МВД | B6: 0 | C6: 0
A7: ГП "Город Кременки" | B7: 0 | C7: 188
A8: ЦМБ № 2 | B8: 8 | C8: 1331
A9: ЦРБ Тарусского района | B9: 8 | C9: 606
A10: ЧУЗ "Больница "РЖД - Медицина" | B10: 13 | C10: 82
A11: ЦМБ № 3 | B11: 16 | C11: 791
A12: ЦРБ Жуковского района | B12: 23 | C12: 978
A13: МСЧ № 1 г. Калуги | B13: 36 | C13: 90
A14: ЦМБ № 6 | B14: 119 | C14: 1267
A15: ЦМБ № 1 | B15: 166 | C15: 1256
A16: ЦМБ № 5 | B16: 167 | C16: 1064
A17: ЦРБ Бабынинского района | B17: 169 | C17: 663
A18: ЦРБ Боровского района | B18: 189 | C18: 1227
A19: КБ № 8 ФМБА | B19: 204 | C19: 491
A20: ЦРБ Малоярославецкого района | B20: 497 | C20: 1269
A21: Городская поликлиника | B21: 505 | C21: 1411
A22: КГБ № 5 | B22: 1590 | C22: 2823
A23: КГКБ № 4 | B23: 1975 | C23: 2532
A24: Общий итог | B24: 5685 | C24: 18465

Sheet 10 лучших (hidden)
A1: Месяц | B1: Март
A3: Названия строк | B3: % выполнения
A4: ЦРБ Боровского района | B4: 15.4
A5: ЦМБ № 5 | B5: 15.7
A6: ЧУЗ "Больница "РЖД - Медицина" | B6: 15.9
A7: ЦРБ Бабынинского района | B7: 25.5
A8: Городская поликлиника | B8: 35.8
A9: ЦРБ Малоярославецкого района | B9: 39.2
A10: МСЧ № 1 г. Калуги | B10: 40
A11: КБ № 8 ФМБА | B11: 41.5
A12: КГБ № 5 | B12: 56.3
A13: КГКБ № 4 | B13: 78
A14: Общий итог | B14: 36.33

Sheet 10 худших (hidden)
A1: Месяц | B1: Март
A3: Названия строк | B3: % выполнения
A4: МСЧ № 2 г. Калуги | B4: 0
A5: ЦМБ № 4 | B5: 0
A6: ГП "Город Кременки" | B6: 0
A7: ЦМБ № 2 | B7: 0.6
A8: ЦРБ Тарусского района | B8: 1.3
A9: ЦМБ № 3 | B9: 2
A10: ЦРБ Жуковского района | B10: 2.4
A11: ЦМБ № 6 | B11: 9.4
A12: ЦМБ № 1 | B12: 13.2
A13: ЦРБ Боровского района | B13: 15.4
A14: Общий итог | B14: 4.43

Sheet Помесячно по МО (hidden)
A1: Выполнение ДВН
A3: Названия строк | B3: Оплачено случаев | C3: План ДВН, чел. | D3: Отклонение
A4: Январь | B4: 0 | C4: 1411 | D4: -1411
A5: Февраль | B5: 578 | C5: 1411 | D5: -833
A6: Март | B6: 505 | C6: 1411 | D6: -906
A7: Апрель | B7: 0 | C7: 0 | D7: 0
A8: Май | B8: 0 | C8: 0 | D8: 0
A9: Июнь | B9: 0 | C9: 0 | D9: 0
A10: Июль | B10: 0 | C10: 0 | D10: 0
A11: Август | B11: 0 | C11: 0 | D11: 0
A12: Сентябрь | B12: 0 | C12: 0 | D12: 0
A13: Октябрь | B13: 0 | C13: 0 | D13: 0
A14: Ноябрь | B14: 0 | C14: 0 | D14: 0
A15: Декабрь | B15: 0 | C15: 0 | D15: 0
A16: Общий итог | B16: 1083 | C16: 4233 | D16: -3150

Sheet Дашборд ДВН
A2: ДИСПАНСЕРНОЕ НАБЛЮДЕНИЕ ВЗРОСЛОГО НАСЕЛЕНИЯ В 2023 ГОДУ
